Cogmind - Beta 17.1 @@@ ROGUE MODE // 2026.08.27 @ 15:56:11 // Winter2019/RPGLIKE Player: obl-vn Result: Heading to fleet! Performance ------------- Evolutions (9) 4500 Regions Visited (31) 6200 Robots Destroyed (1407) 7035 Value Destroyed (87300) 87300 Prototype IDs (374) 7480 Alien Tech Used (3) 600 Bonus (96535) 96535 TOTAL SCORE: 209650 Bonus ------- Triggered High Security 3000 High Alert Combat Kills 63869 Follower Combat Kills 3976 Network Hubs Disabled 600 Delivered SUBCON Basin 2000 Met Imprinter 300 Was Imprinted 300 Met Warlord at Base 500 MAIN.C Attacked Warlord 500 Warlord Defense Kills 7530 Built Enhanced Grunts 300 Used Core Reset Matrix 3000 Destroyed MAIN.C Guards 500 Destroyed MAIN.C Shell 5000 Destroyed MAIN.C 10000 Win 3000 Friendly Fire -7840 Cogmind --------- Core Integrity 2000/2000 Matter 300/300 Energy 697/700 System Corruption 0% Temperature Cool (0) Movement Hovering (20) Location To Fleet Rendezvous Parts ------- > --- POWER (2) -------- Vortex Chain Reactor > --- PROPULSION (7) --- Cooled Antigrav System Cooled Antigrav System Cooled Antigrav System Cooled Linear Gravjet Cooled Linear Gravjet Cooled Linear Gravjet Cooled Linear Gravjet > --- UTILITY (12) ----- Spectral Analyzer Experimental Core Analyzer Experimental Core Analyzer Experimental Armor Integrity Analyzer Precision Energy Filter Precision Energy Filter Advanced Particle Charger Advanced Particle Accelerator Experimental Weapon Cycler Graphene Brace Experimental Force Field Experimental System Purifier > --- WEAPON (3) ------- Hypervelocity Alpha Cannon Hypervelocity Alpha Cannon Hypervelocity Alpha Cannon > --- INVENTORY (3) ---- Zero-point Reactor Peak State ------------ > --- POWER ------------ Vortex Chain Reactor > --- PROPULSION ------- Cooled Antigrav System Cooled Antigrav System Cooled Antigrav System Cooled Linear Gravjet Cooled Linear Gravjet Cooled Linear Gravjet Cooled Linear Gravjet > --- UTILITY ---------- Advanced Signal Interpreter Experimental Core Analyzer Experimental Core Analyzer Experimental Armor Integrity Analyzer Precision Energy Filter Precision Energy Filter Advanced Particle Charger Advanced Particle Accelerator Experimental Weapon Cycler Experimental Force Field Experimental System Purifier Spacefold Activator > --- WEAPON ----------- Hypervelocity Alpha Cannon Hypervelocity Alpha Cannon Hypervelocity Alpha Cannon > --- INVENTORY -------- Protomatter Zero-point Reactor Graphene Brace [Rating: 237] Favorites ----------- Power Vortex Chain Reactor Engine Improved Deuterium Engine Reactor Vortex Chain Reactor Propulsion Cooled Antigrav System Wheel Compact Wheel Hover Unit Cooled Antigrav System Utility Precision Energy Filter Device Precision Energy Filter Processor Advanced Signal Interpreter Hackware Advanced Hacking Suite Protection Hardened Medium Armor Plating Artifact Spacefold Activator Weapon Hypervelocity Alpha Cannon Energy Gun Zionite Laser-S Energy Cannon Hypervelocity Alpha Cannon Ballistic Gun Heavy Battle Rifle Ballistic Cannon Light Cannon Launcher Enhanced Gamma Bomb Array Special Melee Weapon Improved Datajack Build | -11 -10 -10 -10 -8 -6 -6 -6 -6 -5 -5 -5 -5 -5 -5 -5 -4 -4 -4 -4 -4 -4 -4 -4 -3 -3 -3 -2 -2 -2 -1 -1 ------- Run | Yrd Mat Min Sub Rec Fac Low Low Zio Pro Fac Was Fac Upp Upp War Pro Fac Was Fac Ext Cet Arc Hub Res Arm Lab Res Qua Sec Acc Com Slots Evolved 20 | . 1 1 . 5 3 1 . 1 . 1 . . . . 1 . 2 . 1 . . . . . . . . 1 . 1 1 Power 1 | . . . . . . . . . . . . . . . . . 1 . . . . . . . . . . . . . . Propulsion 6 | . . . . 3 . . . . . . . . . . 1 . 1 . . . . . . . . . . 1 . . . Utility 11 | . 1 1 . 2 3 1 . 1 . 1 . . . . . . . . . . . . . . . . . . . . 1 Weapon 2 | . . . . . . . . . . . . . . . . . . . 1 . . . . . . . . . . 1 . Parts Attached 116 | 3 6 2 4 14 13 2 . 1 2 6 3 15 . . 4 . 6 . 5 . . . 1 1 2 . . 5 . 11 10 Power 9 | 1 . 1 . 2 1 . . . 1 . 1 . . . 1 . 1 . . . . . . . . . . . . . . Engine 6 | 1 . 1 . 2 1 . . . 1 . . . . . . . . . . . . . . . . . . . . . . Core . | . . . . . . . . . . . . . . . . . . . . . . . . . . . . . . . . Reactor 3 | . . . . . . . . . . . 1 . . . 1 . 1 . . . . . . . . . . . . . . Propulsion 26 | 1 1 . 3 5 2 . . . . 2 1 2 . . 2 . 1 . 1 . . . . . 1 . . 4 . . . Treads . | . . . . . . . . . . . . . . . . . . . . . . . . . . . . . . . . Leg . | . . . . . . . . . . . . . . . . . . . . . . . . . . . . . . . . Wheel 4 | 1 . . 3 . . . . . . . . . . . . . . . . . . . . . . . . . . . . Hover 22 | . 1 . . 5 2 . . . . 2 1 2 . . 2 . 1 . 1 . . . . . 1 . . 4 . . . Flight . | . . . . . . . . . . . . . . . . . . . . . . . . . . . . . . . . Utility 62 | . 3 1 . 6 8 2 . 1 . 4 . 7 . . 1 . 4 . 3 . . . 1 1 1 . . 1 . 10 8 Device 42 | . 1 1 . 3 5 2 . 1 . 1 . 7 . . 1 . 3 . 1 . . . 1 . 1 . . 1 . 8 5 Storage . | . . . . . . . . . . . . . . . . . . . . . . . . . . . . . . . . Processor 11 | . 1 . . 1 2 . . . . 1 . . . . . . 1 . . . . . . 1 . . . . . 2 2 Hackware 6 | . 1 . . . 1 . . . . 2 . . . . . . . . 2 . . . . . . . . . . . . Protection 2 | . . . . 2 . . . . . . . . . . . . . . . . . . . . . . . . . . . Artifact 1 | . . . . . . . . . . . . . . . . . . . . . . . . . . . . . . . 1 Weapon 19 | 1 2 . 1 1 2 . . . 1 . 1 6 . . . . . . 1 . . . . . . . . . . 1 2 Energy Gun 1 | . . . . . . . . . . . . 1 . . . . . . . . . . . . . . . . . . . Energy Cannon 12 | . 1 . . 1 2 . . . 1 . 1 2 . . . . . . 1 . . . . . . . . . . 1 2 Ballistic Gun 3 | 1 . . 1 . . . . . . . . 1 . . . . . . . . . . . . . . . . . . . Ballistic Cannon 1 | . 1 . . . . . . . . . . . . . . . . . . . . . . . . . . . . . . Launcher 1 | . . . . . . . . . . . . 1 . . . . . . . . . . . . . . . . . . . Special Weapon . | . . . . . . . . . . . . . . . . . . . . . . . . . . . . . . . . Impact Weapon . | . . . . . . . . . . . . . . . . . . . . . . . . . . . . . . . . Slashing Weapon . | . . . . . . . . . . . . . . . . . . . . . . . . . . . . . . . . Piercing Weapon . | . . . . . . . . . . . . . . . . . . . . . . . . . . . . . . . . Special Melee Weapon 1 | . . . . . . . . . . . . 1 . . . . . . . . . . . . . . . . . . . Unidentified Prototypes 13 | . . . . . 1 . . . . . . 7 . . 2 . 1 . . . . . 1 . . . . 1 . . . Parts Lost 4 | . . . 2 . 1 . . . . . . 1 . . . . . . . . . . . . . . . . . . . Power . | . . . . . . . . . . . . . . . . . . . . . . . . . . . . . . . . Propulsion 2 | . . . 2 . . . . . . . . . . . . . . . . . . . . . . . . . . . . Utility 1 | . . . . . . . . . . . . 1 . . . . . . . . . . . . . . . . . . . Weapon 1 | . . . . . 1 . . . . . . . . . . . . . . . . . . . . . . . . . . Highest Loss Streak 1 | . . . 1 . 1 . . . . . . 1 . . . . . . . . . . . . . . . . . . . To Critical Strikes . | . . . . . . . . . . . . . . . . . . . . . . . . . . . . . . . . Average Backups 1 | . . . . . 1 2 2 1 1 2 2 1 1 1 1 1 1 2 1 1 1 1 1 2 2 2 2 2 2 2 2 Power . | . . . . . . . . . . . . . . . . 1 . . . . . . . . . . . . . . . Propulsion . | . . . . . . . . . . . . . . . . . . . . . . . . . . . . . . . . Utility 1 | . . . . . 1 2 1 . . 1 . 1 1 1 . . 1 2 1 1 1 1 1 2 2 2 2 1 1 2 1 Weapon . | . . . . . . . . 1 1 1 . . . . . . . . . . . . . . . . . . . . . Tool/Special . | . . . . . . . . . . . . . . . . . . . . . . . . . . . . . . . . Unused Backups 3 | . . . . . . . 1 . . . . . . . . . . . . . . . . . . . . . . . 2 Power 1 | . . . . . . . . . . . . . . . . . . . . . . . . . . . . . . . 1 Propulsion 1 | . . . . . . . . . . . . . . . . . . . . . . . . . . . . . . . 1 Utility . | . . . . . . . . . . . . . . . . . . . . . . . . . . . . . . . . Weapon 1 | . . . . . . . 1 . . . . . . . . . . . . . . . . . . . . . . . . Tool/Special . | . . . . . . . . . . . . . . . . . . . . . . . . . . . . . . . . Average Slot Usage (%) 92 | . 95 100 93 96 90 85 86 83 82 86 86 90 94 94 92 88 88 90 94 95 95 95 95 95 95 95 95 94 95 95 94 Engine 2 | . 24 17 11 8 7 6 6 6 5 5 3 . . . . . . . . . . . . . . . . . . . . Reactor 3 | . . . . . . . . . . . 1 5 5 5 5 5 5 5 4 4 4 4 4 4 4 4 4 4 4 4 4 Hover 24 | . 8 17 5 29 24 20 20 19 18 17 17 20 23 23 22 22 25 25 29 28 28 28 28 28 28 28 28 29 31 30 29 Device 31 | . . 9 16 18 24 32 33 32 32 29 27 31 35 35 43 44 39 40 36 38 38 38 38 38 40 42 42 40 40 31 30 Processor 14 | . 19 17 16 13 17 20 20 19 18 21 23 23 23 23 13 11 12 15 9 9 9 9 9 9 9 9 9 9 9 17 16 Hackware 3 | . 2 17 16 10 6 . . . . 3 5 2 . . . . . . 7 4 4 4 4 4 1 . . . . . . Energy Cannon 8 | . 4 17 11 7 7 6 6 5 6 5 5 4 5 5 5 5 5 5 5 9 9 9 9 9 9 9 9 9 9 10 12 Peak Build Rating 237 | 3 7 14 16 34 69 74 74 78 79 94 101 124 123 123 141 141 157 155 173 173 173 173 175 177 181 181 181 194 195 218 237 Average Rating 136 | 2 4 8 12 27 54 73 74 73 75 87 96 112 122 123 136 141 149 155 161 173 173 173 174 175 179 181 181 186 194 207 221 On Entrance 118 | . 3 7 10 15 34 69 74 74 74 75 94 98 123 123 123 141 141 155 155 173 173 173 173 175 177 181 181 181 194 195 217 Avg Prop Armor Cover (%) 5 | . . . 8 4 5 . . . . . . . . . . . . . . . . . . . . . . . . 2 . Naked Turns . | . . . . . . . . . . . . . . . . . . . . . . . . . . . . . . . . Heaviest Build 103 | 7 8 13 10 22 38 42 42 45 44 42 47 52 52 52 56 55 74 74 84 84 84 84 84 84 85 85 85 86 86 89 103 Greatest Support 151 | 16 16 11 11 37 42 42 42 42 42 45 50 57 57 57 59 59 75 75 86 86 86 86 86 86 113 88 88 151 105 105 105 Greatest Overweight (x) 1 | . . 1 1 1 . . . 1 1 . . . . . . . . . 1 . . . . . . . . . . . . Average Overweight (x) . | . . . . . . . . . . . . . . . . . . . . . . . . . . . . . . . . Largest Inventory Capacity 3 | . . 1 2 2 2 2 2 2 2 2 2 2 2 2 2 2 2 2 2 2 2 2 2 2 2 2 2 2 3 3 3 Average Capacity 2 | . . . 1 2 2 2 2 2 2 2 2 2 2 2 2 2 2 2 2 2 2 2 2 2 2 2 2 2 2 3 3 Most Carried 3 | . . 1 2 2 2 2 2 2 2 2 2 2 2 2 2 2 2 2 2 2 2 2 2 2 2 2 2 2 3 3 3 Average Carried 1 | . . . 1 1 1 2 1 1 1 2 1 1 1 2 1 2 1 2 1 1 2 2 1 2 2 2 2 1 2 2 2 Final Capacity 3 | . . 1 2 2 2 2 2 2 2 2 2 2 2 2 2 2 2 2 2 2 2 2 2 2 2 2 2 2 3 3 3 Final Carried 3 | . . 1 2 1 2 2 2 2 2 2 2 2 2 2 2 2 2 2 1 2 2 2 2 2 2 2 2 2 3 2 1 Class Distribution -------------------- 51% | Machinist-Sprinter 32% | Mutant 8% | Machinist-Mutant 3% | Scientist-Mutant Dominant Class ---------------- Mutant | -10/Materials Mutant | -10/Mines Mutant | -10/Subcaves Mutant | -8/Recycling Mutant | -6/Factory Mutant | -6/Lower Caves Mutant | -6/Lower Caves Mutant | -6/Zion Mutant | -5/Proximity Caves Mutant | -5/Factory Mutant | -5/Waste Scientist-Mutant | -5/Factory Machinist-Mutant | -5/Upper Caves Machinist-Mutant | -5/Upper Caves Machinist-Mutant | -5/Warlord Machinist-Mutant | -4/Proximity Caves Machinist-Sprinter | -4/Factory Machinist-Sprinter | -4/Waste Hacker-Sprinter | -4/Factory Machinist-Sprinter | -4/Extension Machinist-Sprinter | -4/Cetus Machinist-Sprinter | -4/Archives Machinist-Sprinter | -4/Hub_04(d) Machinist-Sprinter | -3/Research Machinist-Sprinter | -3/Armory Machinist-Sprinter | -3/Lab Machinist-Sprinter | -2/Research Machinist-Sprinter | -2/Quarantine Machinist-Sprinter | -2/Section 7 Machinist-Sprinter | -1/Access Machinist-Sprinter | -1/Command Resources | -11 -10 -10 -10 -8 -6 -6 -6 -6 -5 -5 -5 -5 -5 -5 -5 -4 -4 -4 -4 -4 -4 -4 -4 -3 -3 -3 -2 -2 -2 -1 -1 ----------- Run | Yrd Mat Min Sub Rec Fac Low Low Zio Pro Fac Was Fac Upp Upp War Pro Fac Was Fac Ext Cet Arc Hub Res Arm Lab Res Qua Sec Acc Com Matter Collected 2285 | 230 296 30 116 162 181 47 13 10 70 60 30 210 . . 70 . 20 . 180 . . . 10 10 40 . . 50 20 210 220 Remotely . | . . . . . . . . . . . . . . . . . . . . . . . . . . . . . . . . Salvage Created 85155 | . 490 217 295 75 874 238 118 . 608 1093 2026 2184 1069 1062 3130 792 1490 1454 4557 4672 319 365 4278 1247 3699 . . 705 907 12083 35108 Parts 3953 | . 30 16 26 8 56 20 12 . 34 33 58 138 51 38 153 41 83 25 306 154 16 16 292 82 205 . . 39 60 618 1343 Haulers Intercepted 13 | . 2 . . . 1 . . . . 1 . . . . . . . . 1 . . . 2 2 . . . 1 . 3 . Recyclers Shooed 4 | . . 1 . 1 . . . . . . . 2 . . . . . . . . . . . . . . . . . . . Parts Field Recycled . | . . . . . . . . . . . . . . . . . . . . . . . . . . . . . . . . Retrieved Matter . | . . . . . . . . . . . . . . . . . . . . . . . . . . . . . . . . Parts Self-Destructed 191 | . . . 9 . . 20 12 . 31 . . . 45 33 . 41 . . . . . . . . . . . . . . . Prevented 5 | . . . . . . . . . 4 . . . 1 . . . . . . . . . . . . . . . . . . Parts Restored . | . . . . . . . . . . . . . . . . . . . . . . . . . . . . . . . . Kills | -11 -10 -10 -10 -8 -6 -6 -6 -6 -5 -5 -5 -5 -5 -5 -5 -4 -4 -4 -4 -4 -4 -4 -4 -3 -3 -3 -2 -2 -2 -1 -1 ------- Run | Yrd Mat Min Sub Rec Fac Low Low Zio Pro Fac Was Fac Upp Upp War Pro Fac Was Fac Ext Cet Arc Hub Res Arm Lab Res Qua Sec Acc Com Combat Hostiles Destroyed 1277 | . 10 10 13 3 22 9 6 . 14 12 4 39 15 18 64 22 26 5 81 64 4 4 66 16 56 . . 6 13 160 515 Guns 8 | . 2 . 4 2 . . . . . . . . . . . . . . . . . . . . . . . . . . . Cannons 1246 | . 8 9 9 1 14 7 5 . 13 10 2 37 15 18 64 22 23 5 81 64 4 4 66 16 56 . . 6 13 159 515 AOE 9 | . . . . . 5 . . . . . . . . . . . 3 . . . . . . . . . . . . 1 . Classes Destroyed 34 | . 6 1 1 1 2 2 1 . 1 1 3 1 2 1 2 1 1 . 1 1 . . 1 1 1 . . . . 1 1 Worker 40 | . 2 . . . 4 . . . . 1 . 5 . . . . 3 . 5 . . . 1 1 . . . 1 . 10 7 Builder 16 | . . . . . 2 . . . . . . 5 . . . . 2 . . 2 . . . 1 . . . 1 . 3 . Tunneler 5 | . . . . . . . . . . . . . . . . . 1 . 1 . . . 2 . . . . . . 1 . Hauler 13 | . 2 . . . 1 . . . . 1 . . . . . . . . 1 . . . 2 2 . . . 1 . 3 . Recycler 11 | . . . . . . . . . . 1 . 2 . . . . 1 . 2 1 . . 1 . . . . . . 2 1 Carrier 17 | . . . . . . . . . . . . . . . . . . . . 3 . . . . 1 . . . . 2 11 Mechanic 25 | . . . . . . . . . . . . 1 . . . . . . 1 4 . . 1 . . . . . . 8 10 Operator 15 | . 1 . . . 1 . . . . . . 1 . . . . 1 . 2 1 . . 3 1 1 . . . 1 2 . Drone 6 | . . . . . . . . . . . . . . . . 2 . . . . . . . . . . . . . . 4 Watcher 44 | . 1 . . . 3 . . . . 5 . 1 . . . . 1 . 4 2 1 . 4 3 1 . . 1 2 7 8 Swarmer 140 | . 3 4 5 . . 4 3 . . 2 . 10 1 6 9 11 9 . 6 4 . . . 4 5 . . . . 10 44 Cutter 16 | . . . . . . . . . . . . . . . . . . . . . . . . 2 . . . . 2 . 12 Saboteur 36 | . . . . . . . . . 1 . . . . . 1 . . . 5 1 . . 1 . 5 . . . . 6 16 Grunt 410 | . 7 5 . . 11 3 2 . 5 4 . 10 9 9 20 2 6 . 41 28 . . 22 5 16 . . 2 4 58 141 Brawler 76 | . . . . . . . 1 . 4 . . . . 2 6 1 1 . 6 4 . . 4 . 6 . . . . 10 31 Duelist 52 | . . . . . . 1 . . 3 . . 2 . . 4 1 . . . 2 . . . . 1 . . . . 5 33 Protector 44 | . . . . . . . . . . . . . . . 5 . . . 3 1 . . 3 . . . . . 1 10 21 Researcher 1 | . . . . . . . . . . . . . . . . . . . . . . . . . . . . . 1 . . Sentry 83 | . . . . 3 4 . . . 2 2 . 1 1 1 . 2 2 . 7 13 . 4 12 1 10 . . . 3 10 5 Demolisher 19 | . . . . . . . . . . . . . . . 4 . . . . . . . 1 . . . . . . 2 12 Specialist 32 | . . . . . . . . . . . . . 3 . 2 . . . . . . . 1 . 2 . . . . . 24 Hunter 116 | . . . . . . . . . . . . 4 1 . 5 2 4 . 3 8 . . 1 . 6 . . 2 2 16 62 Programmer 145 | . . . . . 7 . . . . 4 . 12 . . 6 . 4 . 9 1 . . 15 4 5 . . 2 . 12 64 Heavy 6 | . . . . . . . . . . . . . . . . . . . 1 . . . 1 . . . . . 1 2 1 Behemoth 8 | . . . . . . 1 . . . . . . . . . 1 . . . 2 . . . . . . . . . 2 2 Compactor 9 | . . . . . . . . . . . 4 . . . . . . 5 . . . . . . . . . . . . . Cetus Guard 4 | . . . . . . . . . . . . . . . . . . . . . 4 . . . . . . . . . . M Guard 2 | . . . . . . . . . . . . . . . . . . . . . . . . . . . . . . . 2 Lightning 5 | . . . . . . . . . . . . . . . . . . . . . . . 5 . . . . . . . . Combat Programmer 2 | . . . . . . . . . . . . . . . . . . . . . . . . . . . . . . . 2 Investigator 3 | . . . . . . . . . . . . . . . . . . . . . . . . . 1 . . . . . 2 Striker 31 | . . . . . . . . . . . . . . . 4 . . . . . . . . . . . . . . 10 17 Executioner 25 | . . . . . . . . . . . . . . . . . . . . . . . . . . . . . . 7 18 Alpha 7 2 | . . . . . . . . . . . . . . . . . . . . . . . . . . . . . . . 2 Subdweller 8 | . . . 8 . . . . . . . . . . . . . . . . . . . . . . . . . . . . Z-Courier 1 | . . . . . . . . . . . . . . . . . . . . . . . . . 1 . . . . . . Z-Light 2 | . . . . . . . . . . . . . . . . . . . . . . . 1 . 1 . . . . . . Samaritan 1 | . . . . . . . . . . . . . 1 . . . . . . . . . . . . . . . . . . Assembled 13 | . . 1 . . . . . . . . . . . . . . . . . . . . . . . . . . . 3 9 Surgeon 1 | . . . . . . . . . . . 1 . . . . . . . . . . . . . . . . . . . . Wasp 6 | . . . . . . . . . . . 6 . . . . . . . . . . . . . . . . . . . . Thug 11 | . . . . . . . . . . . 7 . . . . . . . 3 . . . . . 1 . . . . . . Savage 2 | . . . . . . . . . . . 2 . . . . . . . . . . . . . . . . . . . . Martyr 2 | . . . . . . . . . . . 2 . . . . . . . . . . . . . . . . . . . . Wizard 4 | . . . . . . . . . . . . . . . . . . . . . . . 4 . . . . . . . . Mutant 1 | . . . . . . . . . . . . . . 1 . . . . . . . . . . . . . . . . . Best Kill Streak 105 | . 3 2 4 1 7 4 3 . 6 3 3 10 5 12 16 7 12 17 34 42 5 4 33 11 20 . . 10 6 67 105 Combat Bots Only 103 | . 3 2 4 1 4 4 3 . 6 3 3 6 5 12 16 7 9 14 19 36 4 4 31 8 19 . . 6 5 41 103 Max Kills in Single Turn 11 | . 1 1 1 1 5 1 1 . 1 1 1 6 2 1 3 2 4 1 5 8 2 1 4 2 4 . . 3 2 5 11 Gunslinging . | . . . . . . . . . . . . . . . . . . . . . . . . . . . . . . . . Exploded 3 | . . . . . 3 . . . . . . . . . . . 3 . . . . . . . . . . . . 1 . Melee . | . . . . . . . . . . . . . . . . . . . . . . . . . . . . . . . . Uniques/NPCs Destroyed 2 | . . . . . . . . . . . . . . . . . . . . . . . . . . . . . . . 2 MAIN.C Shell (-1/Command) MAIN.C (-1/Command) Combat | -11 -10 -10 -10 -8 -6 -6 -6 -6 -5 -5 -5 -5 -5 -5 -5 -4 -4 -4 -4 -4 -4 -4 -4 -3 -3 -3 -2 -2 -2 -1 -1 -------- Run | Yrd Mat Min Sub Rec Fac Low Low Zio Pro Fac Was Fac Upp Upp War Pro Fac Was Fac Ext Cet Arc Hub Res Arm Lab Res Qua Sec Acc Com Hostile Shots Fired 1303 | . 46 40 76 10 138 23 8 . 10 45 . 55 1 . 4 6 18 . 103 24 . . 86 17 86 . . 13 15 186 293 Missed 557 | . 12 15 23 4 61 12 3 . 4 18 . 20 1 . . 4 3 . 45 16 . . 33 9 36 . . 6 9 95 128 Hits 746 | . 34 25 53 6 77 11 5 . 6 27 . 35 . . 4 2 15 . 58 8 . . 53 8 50 . . 7 6 91 165 Melee 13 | . . 3 . . . . . . . . . . . . . . . . . . . . . 2 . . . . 1 . 7 Projectile 733 | . 34 22 53 6 77 11 5 . 6 27 . 35 . . 4 2 15 . 58 8 . . 53 6 50 . . 7 5 91 158 AOE 15 | . . . . . . . . . . . . . . . 1 . . . . . . . 4 2 1 . . . . . 7 Critical Strikes 41 | . 1 1 . . . . 1 . . 4 . 2 . . . . . . 4 . . . 3 . 4 . . 2 1 5 13 Actively Blocked 33 | . . . . . . . . . . . . 1 . . . . . . 4 . . . 3 . 4 . . 2 1 5 13 Part Disruptions 3 | . . . . . . . . . . . . 1 . . . . . . . . . . . . . . . . . 2 . Damage Taken 15801 | . 379 283 805 85 667 177 56 . 100 770 . 682 . . 139 53 218 . 1407 140 . . 1497 309 668 . . 268 347 2238 4513 Core 12918 | . 327 234 687 70 536 152 49 . 85 658 . 550 . . 110 42 169 . 1133 111 . . 1218 250 529 . . 221 301 1776 3710 Absorbed by Shields 746 | . . . . . 267 60 23 . 24 126 . 52 . . . . . . . 32 . . . . 151 . . . . . 11 Redirected to Core 10266 | . 166 148 408 55 425 90 23 . 53 399 . 468 . . 110 42 169 . 970 111 . . 1007 221 458 . . 171 175 1675 2922 Ignored by Resistances 2076 | . . . . . . 10 . . . . . 38 . . . . 8 . 243 29 . . 215 . 27 . . 17 84 319 1086 Regen/Repaired (Parts) 70 | . . . . . . . . . . . 70 . . . . . . . . . . . . . . . . . . . . Core Remaining (%) 80 | 100 . . . 63 . . . . 100 . . . . . . 100 . . . . . . 31 . . 79 . . 70 . 100 Volleys Fired 2752 | . 87 55 68 39 163 44 16 . 52 127 123 174 72 41 144 52 51 12 130 57 6 4 85 24 72 1 1 9 28 239 776 Largest 3 | . 1 1 1 1 1 1 1 . 1 1 1 1 1 1 1 1 1 1 2 2 2 2 2 2 2 2 1 2 2 3 3 Hottest 270 | . 60 60 60 75 90 90 90 . 90 90 113 113 90 90 90 90 90 90 180 180 180 180 180 180 180 180 90 180 180 270 270 Shots Fired 4209 | . 87 55 68 39 163 44 17 . 52 127 123 174 72 41 144 52 51 12 176 106 11 8 169 34 139 2 1 16 50 522 1654 Gun 54 | . 16 . 30 8 . . . . . . . . . . . . . . . . . . . . . . . . . . . Cannon 4155 | . 71 55 38 31 163 44 17 . 52 127 123 174 72 41 144 52 51 12 176 106 11 8 169 34 139 2 1 16 50 522 1654 Launcher . | . . . . . . . . . . . . . . . . . . . . . . . . . . . . . . . . Special . | . . . . . . . . . . . . . . . . . . . . . . . . . . . . . . . . Kinetic 101 | . 63 . 30 8 . . . . . . . . . . . . . . . . . . . . . . . . . . . Thermal 792 | . 24 55 38 31 155 44 17 . 45 127 123 128 . . . . . . . . . . . . . . . . . . 5 Explosive . | . . . . . . . . . . . . . . . . . . . . . . . . . . . . . . . . Electromagnetic 15 | . . . . . 8 . . . 7 . . . . . . . . . . . . . . . . . . . . . . Phasic 3301 | . . . . . . . . . . . . 46 72 41 144 52 51 12 176 106 11 8 169 34 139 2 1 16 50 522 1649 Robot Hit Streak 64 | . 10 5 16 18 25 19 28 . 30 21 33 26 15 26 24 13 14 18 32 25 5 13 32 10 26 . . 16 11 64 49 Robot Miss Streak 3 | . 2 3 2 2 3 1 . . 2 2 2 3 . 1 3 1 1 . 2 2 1 . 3 1 2 . . 2 1 2 3 Penetration Max 10 | . . . . . . . . . . . . 5 2 1 3 1 3 . 4 7 1 . 3 1 2 . . 2 1 4 10 Secondary Targets . | . . . . . . . . . . . . . . . . . . . . . . . . . . . . . . . . Capacitor 922 | . . . . . 50 44 9 . 48 127 123 174 72 41 144 52 38 . . . . . . . . . . . . . . Shots Hit Robots 1826 | . 42 25 47 13 67 33 9 . 33 66 110 79 14 15 99 32 24 11 116 67 6 8 90 20 68 . . 9 27 295 401 Core Hits 1399 | . 19 11 19 4 41 12 7 . 22 26 38 38 12 13 52 13 15 5 61 62 4 3 61 13 40 . . 3 13 196 596 Critical Kills 12 | . . 1 . . 1 1 1 . 1 1 4 2 . . . . . . . . . . . . . . . . . . . Critical Parts Destroyed . | . . . . . . . . . . . . . . . . . . . . . . . . . . . . . . . . Critical Strikes 1328 | . 2 1 . . 1 1 1 . 1 1 4 11 22 14 105 12 27 7 80 77 7 8 80 13 61 . . 13 19 213 547 Meltdown 12 | . . 1 . . 1 1 1 . 1 1 4 2 . . . . . . . . . . . . . . . . . . . Blast 2 | . 2 . . . . . . . . . . . . . . . . . . . . . . . . . . . . . . Phase 1314 | . . . . . . . . . . . . 9 22 14 105 12 27 7 80 77 7 8 80 13 61 . . 13 19 213 547 Melee Attacks 1 | . . . . . . . . . . . . 1 . . . . . . . . . . . . . . . . . . . Impact . | . . . . . . . . . . . . . . . . . . . . . . . . . . . . . . . . Slashing . | . . . . . . . . . . . . . . . . . . . . . . . . . . . . . . . . Piercing . | . . . . . . . . . . . . . . . . . . . . . . . . . . . . . . . . Sneak Attacks 1 | . . . . . . . . . . . . 1 . . . . . . . . . . . . . . . . . . . Combat Hostiles . | . . . . . . . . . . . . . . . . . . . . . . . . . . . . . . . . Follow-up Attacks . | . . . . . . . . . . . . . . . . . . . . . . . . . . . . . . . . Damage Inflicted 189352 | . 659 433 903 346 4598 1311 356 . 1312 2487 4132 5108 1480 1220 6260 1920 2691 704 11115 9600 576 512 10459 1920 6327 . . 896 2176 27839 82012 Guns 533 | . 121 . 306 106 . . . . . . . . . . . . . . . . . . . . . . . . . . . Cannons 184362 | . 538 433 597 240 2906 1311 356 . 1312 2487 4132 5014 1480 1220 6260 1920 2320 704 10496 9600 576 512 9600 1920 6272 . . 896 2176 27072 82012 Explosions 4457 | . . . . . 1692 . . . . . . 94 . . . . 371 . 619 . . . 859 . 55 . . . . 767 . Melee . | . . . . . . . . . . . . . . . . . . . . . . . . . . . . . . . . Ramming . | . . . . . . . . . . . . . . . . . . . . . . . . . . . . . . . . Kinetic 1018 | . 606 . 306 106 . . . . . . . . . . . . . . . . . . . . . . . . . . . Thermal 18918 | . 53 433 597 240 3888 1311 356 . 1276 2487 4132 3208 . . . . 336 . 601 . . . . . . . . . . . . Explosive 1312 | . . . . . 472 . . . . . . . . . . . . . 18 . . . . . 55 . . . . 767 . Electromagnetic 1168 | . . . . . 238 . . . 36 . . . . . . . 35 . . . . . 859 . . . . . . . . Impact . | . . . . . . . . . . . . . . . . . . . . . . . . . . . . . . . . Slashing . | . . . . . . . . . . . . . . . . . . . . . . . . . . . . . . . . Piercing . | . . . . . . . . . . . . . . . . . . . . . . . . . . . . . . . . Phasic 166936 | . . . . . . . . . . . . 1900 1480 1220 6260 1920 2320 704 10496 9600 576 512 9600 1920 6272 . . 896 2176 27072 82012 Highest Corruption 2 | . . . . . 2 1 1 1 . . . . . . . . . . . . . . . . . . . . . . . Average Corruption 1 | . . . . . 1 1 1 1 . . . . . . . . . . . . . . . . . . . . . . . Corruption Purged 4 | . . . . . 4 . . . . . . . . . . . . . . . . . . . . . . . . . . Corruption Blocked 19 | . . . . . . . . . . 2 . . . . . . . 5 3 . . . 3 . . . . 3 . 2 1 Effects 9 | . . . . . 1 5 3 . . . . . . . . . . . . . . . . . . . . . . . . Message Errors 1 | . . . . . . 1 . . . . . . . . . . . . . . . . . . . . . . . . . Matter Fused 4 | . . . . . 1 2 1 . . . . . . . . . . . . . . . . . . . . . . . . Energy Discharges 1 | . . . . . . 1 . . . . . . . . . . . . . . . . . . . . . . . . . Data Loss (minor) 2 | . . . . . . 1 1 . . . . . . . . . . . . . . . . . . . . . . . . Misfires 1 | . . . . . . . 1 . . . . . . . . . . . . . . . . . . . . . . . . Overload Shots 2 | . . . . . . . . . . . . . . . . . . . . . . . . . . . . . . . 2 Overflow Damage 5989 | . . . . 10 257 51 . . 1 98 . 334 93 10 151 142 97 . 559 168 . . 185 75 189 . . 66 135 979 2389 Projectiles 5624 | . . . . 10 115 51 . . 1 98 . 280 93 10 151 142 74 . 421 168 . . 182 75 189 . . 66 135 974 2389 Explosions 365 | . . . . . 142 . . . . . . 54 . . . . 23 . 138 . . . 3 . . . . . . 5 . Melee . | . . . . . . . . . . . . . . . . . . . . . . . . . . . . . . . . Knockbacks 8 | . 8 . . . . . . . . . . . . . . . . . . . . . . . . . . . . . . Impact . | . . . . . . . . . . . . . . . . . . . . . . . . . . . . . . . . Kinetic 8 | . 8 . . . . . . . . . . . . . . . . . . . . . . . . . . . . . . Secondary . | . . . . . . . . . . . . . . . . . . . . . . . . . . . . . . . . Self-Inflicted Damage 475 | . . . . . 26 . . . . . . . . . . . 21 . 49 . . . 294 . . . . . . 85 . Shots 7 | . . . . . 1 . . . . . . . . . . . 1 . 1 . . . 3 . . . . . . 1 . Rammed . | . . . . . . . . . . . . . . . . . . . . . . . . . . . . . . . . Targets Rammed . | . . . . . . . . . . . . . . . . . . . . . . . . . . . . . . . . Kicked . | . . . . . . . . . . . . . . . . . . . . . . . . . . . . . . . . Crushed . | . . . . . . . . . . . . . . . . . . . . . . . . . . . . . . . . Highest Temperature 189 | . 132 50 1 106 167 176 54 . 98 55 92 30 . . . . . . . . . . . . . . . . . 108 189 Average Temperature 38 | . 39 17 1 61 44 41 22 . 30 10 17 5 . . . . . . . . . . . . . . . . . 45 47 Received Heat Transfer 1349 | . 183 33 237 9 152 42 25 . 12 65 . 90 . . . . 9 . 177 16 . . 87 9 39 . . 18 . 74 72 Siege Activations . | . . . . . . . . . . . . . . . . . . . . . . . . . . . . . . . . Martial Activations . | . . . . . . . . . . . . . . . . . . . . . . . . . . . . . . . . Shielding Activations . | . . . . . . . . . . . . . . . . . . . . . . . . . . . . . . . . Robots Disrupted 1 | . . . . . 1 . . . . . . . . . . . . . . . . . . . . . . . . . . Combat Hostiles 1 | . . . . . 1 . . . . . . . . . . . . . . . . . . . . . . . . . . Robots Corrupted 3 | . . . . . 2 . . . . . . . . . . . . . . . . . 1 . . . . . . . . Combat Hostiles 2 | . . . . . 2 . . . . . . . . . . . . . . . . . . . . . . . . . . Parts Fried 13 | . . . . . 2 . . . . . . . . . 1 . . . . . . . 9 . . . . . . . 1 Impact Corruptions . | . . . . . . . . . . . . . . . . . . . . . . . . . . . . . . . . Robots Melted 14 | . . 1 . . 1 2 1 . 1 2 4 2 . . . . . . . . . . . . . . . . . . . Combat Hostiles 12 | . . 1 . . 1 2 1 . 1 2 2 2 . . . . . . . . . . . . . . . . . . . Parts Melted 54 | . . 2 3 . 12 3 1 . 4 9 6 9 . . 4 . . . . . . . . . . . . . . . 1 Heat Transferred 21894 | . 111 925 1258 296 4100 1650 450 . 1650 3300 5147 2307 . . . . 300 . 400 . . . . . . . . . . . . Parts Sabotaged . | . . . . . . . . . . . . . . . . . . . . . . . . . . . . . . . . Parts Stolen . | . . . . . . . . . . . . . . . . . . . . . . . . . . . . . . . . Parts Stripped . | . . . . . . . . . . . . . . . . . . . . . . . . . . . . . . . . Power Chain Reactions 2 | . . . . . 1 . . . . . . . . . . . 1 . . . . . . . . . . . . . . Alert | -11 -10 -10 -10 -8 -6 -6 -6 -6 -5 -5 -5 -5 -5 -5 -5 -4 -4 -4 -4 -4 -4 -4 -4 -3 -3 -3 -2 -2 -2 -1 -1 ------- Run | Yrd Mat Min Sub Rec Fac Low Low Zio Pro Fac Was Fac Upp Upp War Pro Fac Was Fac Ext Cet Arc Hub Res Arm Lab Res Qua Sec Acc Com Maximum Alert Level 5 | . 1 . . . 5 . . . . 2 1 5 . . . . 4 2 5 5 5 4 5 5 5 . . 1 4 5 5 Low Security (%) 15 | 100 86 100 . 100 36 . . . . . 94 10 . . . . . . . . . . 1 . . . 100 51 14 . . Level 1 9 | . 13 . . . 44 . . . . 48 5 19 . . . . 25 . 1 . . . 1 . . . . 48 29 . . Level 2 25 | . . . . . 3 . . . . 51 . 18 . . . . 17 100 7 . . 69 16 . . . . . 27 . . Level 3 12 | . . . . . 6 . . . . . . 32 . . . . 44 . 10 . . 24 1 . . . . . 24 6 . Level 4 5 | . . . . . 2 . . . . . . 16 . . . . 13 . 30 . . 6 10 . . . . . 3 7 . Level 5 13 | . . . . . 7 . . . . . . 2 . . . . . . . 6 100 . . 100 37 . . . . . 59 High Security 18 | . . . . . . . . . . . . . . . . . . . 49 93 . . 68 . 62 . . . . 84 40 Max Security . | . . . . . . . . . . . . . . . . . . . . . . . . . . . . . . . . Sterilizations 1 | . . . . . . . . . . . . . . . . . . . . . . . . . . . . . . 1 . Peak Influence 22267 | . 264 150 . 87 2040 . . . . 580 203 2030 . . . . 1308 507 3675 4448 2656 1286 5752 3870 4590 . 12 301 1127 10197 22267 Initial 6525 | . . 100 . . 100 . . . . 240 203 48 . . . . 201 457 347 1800 2490 1026 180 3019 2026 . . . 150 676 6525 Average 2156 | . 89 108 . 21 385 . . . . 393 140 710 . . . . 684 485 1868 2653 2609 671 3114 3340 3303 . 1 157 492 5113 15203 Influence Increases 57874 | . 540 245 160 212 2777 210 140 . 591 756 26 2686 345 360 1324 450 1315 70 3586 2758 186 260 5862 971 2714 . 12 369 1107 10601 17241 Destroy 0b10 Robot/C 26320 | . 200 180 100 60 440 180 120 . 400 240 . 1100 300 340 1180 400 520 . 1560 1440 80 80 1640 440 1200 . . 120 260 3600 10140 Destroy 0b10 Robot/NC 1205 | . 30 . . . 55 . . . . 40 . 100 25 . 25 10 45 . 95 55 5 . 95 40 10 . . 20 20 240 295 Destroy Leader 3066 | . 56 30 . . 148 30 20 . 30 70 . 238 20 20 . 40 92 . 280 184 . . 242 90 202 . . 24 74 590 586 Allied During Kill 7074 | . . . . . . . . . 146 . . 170 . . 119 . . . . 587 29 80 1658 48 293 . . . . 2547 1397 Successful Hack 166 | . 13 . . 6 95 . . . . . . 42 . . . . . . 5 . . . . 5 . . . . . . . Select Force Hacks 30 | . . . . 30 . . . . . . . . . . . . . . . . . . . . . . . . . . . Disable Machine 5280 | . 225 30 . 105 1425 . . . . 210 . 420 . . . . 225 . 540 90 30 60 885 75 255 . . 90 75 315 225 Anti-Garrison Action 650 | . . . . . . . . . . . . . . . . . . . . . . . . . . . . . 150 450 50 Destroy Structure 12333 | . 1 5 . 11 379 . . . . 76 26 526 . . . . 418 70 1076 312 42 40 1222 258 754 . 12 100 483 2814 3708 Advance Influence 100 | . . . . . 100 . . . . . . . . . . . . . . . . . . . . . . . . . . Partial Spotted 120 | . . . . . . . . . . 45 . . . . . . . . 15 . . . . . . . . 15 30 15 . Lose Combat Pursuer 1530 | . 15 . 60 . 135 . . . 15 75 . 90 . . . . 15 . 15 90 . . 120 15 . . . . 15 30 840 Influence Decreases 34448 | . 282 420 243 212 740 1001 408 978 208 559 537 725 982 456 1529 1222 327 881 408 1985 2068 2310 626 2863 1984 4590 10 102 249 1531 4012 Entered New Map 26351 | . . 158 44 . . 755 238 978 . 143 377 21 752 266 1297 1092 119 851 150 1875 1958 1540 336 2733 1834 4590 . 2 119 451 3672 Time Decay 6087 | . 282 262 189 212 580 246 170 . 188 416 160 614 230 190 212 130 198 30 238 10 110 770 90 130 70 . 10 100 130 100 20 Lost Part 30 | . . . 10 . 10 . . . . . . 10 . . . . . . . . . . . . . . . . . . . Lost Ally 1830 | . . . . . . . . . 20 . . 80 . . 20 . 10 . 20 100 . . 200 . 80 . . . . 980 320 Purge Threat 150 | . . . . . 150 . . . . . . . . . . . . . . . . . . . . . . . . . . Squads Dispatched 193 | . 2 . . . 11 . . . 1 8 . 15 . . . . 6 . 18 14 . . 17 6 10 . . 2 4 47 32 Investigation 12 | . . . . . 3 . . . . . . 4 . . . . 2 . 1 . . . . 1 . . . 1 . . . Extermination 21 | . . . . . 5 . . . . 2 . 6 . . . . 2 . 2 . . . 1 1 1 . . 1 . . . Reinforcement 23 | . 2 . . . 1 . . . . 2 . 4 . . . . 1 . 1 . . . 2 2 1 . . . 2 5 . Assault 129 | . . . . . 2 . . . 1 . . 1 . . . . 1 . 14 14 . . 14 2 8 . . . 2 38 32 Garrison 8 | . . . . . . . . . . 4 . . . . . . . . . . . . . . . . . . . 4 . Intercept . | . . . . . . . . . . . . . . . . . . . . . . . . . . . . . . . . Searches Triggered . | . . . . . . . . . . . . . . . . . . . . . . . . . . . . . . . . Construction Impeded 3 | . . . . . 1 . . . . . . 2 . . . . . . . . . . . . . . . . . . . Haulers Reinforced 3 | . . . . . . . . . . . . . . . . . 1 . . . . . . . . . . . . 2 . Active Scanning Responses . | . . . . . . . . . . . . . . . . . . . . . . . . . . . . . . . . Cargo Convoy Interrupts 1 | . . . . . . . . . . . . 1 . . . . . . . . . . . . . . . . . . . Stealth | -11 -10 -10 -10 -8 -6 -6 -6 -6 -5 -5 -5 -5 -5 -5 -5 -4 -4 -4 -4 -4 -4 -4 -4 -3 -3 -3 -2 -2 -2 -1 -1 --------- Run | Yrd Mat Min Sub Rec Fac Low Low Zio Pro Fac Was Fac Upp Upp War Pro Fac Was Fac Ext Cet Arc Hub Res Arm Lab Res Qua Sec Acc Com Distress Signals 24 | . . 1 . . . . . . . 2 . 3 . . . . 1 . . . . . 3 . 2 . . . . 4 8 Communications Jammed 45 | . . . . . . . . . . . . . . . . . . . 5 . . . 35 . 2 . . . 3 . . Distress Signals 45 | . . . . . . . . . . . . . . . . . . . 5 . . . 35 . 2 . . . 3 . . Times Spotted 736 | . 22 12 18 3 35 9 6 . 19 24 7 50 1 3 21 5 9 4 58 30 . . 62 13 33 . . 6 12 95 179 Peak Tracking Total 59 | . 3 3 6 1 4 4 3 . 7 3 3 7 3 6 18 7 3 1 12 19 5 . 21 6 5 . . 2 5 12 59 Tactical Retreats 35 | . 1 . 2 . 5 . . . 1 3 1 4 . . . . 1 . 1 3 . . 3 1 . . . . 1 1 7 Traps | -11 -10 -10 -10 -8 -6 -6 -6 -6 -5 -5 -5 -5 -5 -5 -5 -4 -4 -4 -4 -4 -4 -4 -4 -3 -3 -3 -2 -2 -2 -1 -1 ------- Run | Yrd Mat Min Sub Rec Fac Low Low Zio Pro Fac Was Fac Upp Upp War Pro Fac Was Fac Ext Cet Arc Hub Res Arm Lab Res Qua Sec Acc Com Traps Triggered 24 | . . . . . 9 . . . . 1 . . . . . . 1 . 5 3 . . 1 . 1 . . 1 . 2 . Indirectly 1 | . . . . . . . . . . . . . . . . . . . . . . . 1 . . . . . . . . Trap Hack Attempts . | . . . . . . . . . . . . . . . . . . . . . . . . . . . . . . . . Triggered . | . . . . . . . . . . . . . . . . . . . . . . . . . . . . . . . . Disarmed . | . . . . . . . . . . . . . . . . . . . . . . . . . . . . . . . . Reprogrammed . | . . . . . . . . . . . . . . . . . . . . . . . . . . . . . . . . Reused . | . . . . . . . . . . . . . . . . . . . . . . . . . . . . . . . . Traps Extracted . | . . . . . . . . . . . . . . . . . . . . . . . . . . . . . . . . Installed . | . . . . . . . . . . . . . . . . . . . . . . . . . . . . . . . . Triggered . | . . . . . . . . . . . . . . . . . . . . . . . . . . . . . . . . Machines | -11 -10 -10 -10 -8 -6 -6 -6 -6 -5 -5 -5 -5 -5 -5 -5 -4 -4 -4 -4 -4 -4 -4 -4 -3 -3 -3 -2 -2 -2 -1 -1 ---------- Run | Yrd Mat Min Sub Rec Fac Low Low Zio Pro Fac Was Fac Upp Upp War Pro Fac Was Fac Ext Cet Arc Hub Res Arm Lab Res Qua Sec Acc Com Machines Disabled 384 | . 15 2 . 7 95 . . . . 14 . 28 3 3 4 2 15 . 36 10 2 4 59 5 17 . . 8 6 32 17 Max in Single Turn 17 | . 1 1 . 1 17 . . . . 1 . 2 2 1 1 1 4 . 6 2 2 2 13 2 3 . . 3 1 3 2 Garrison Access 11 | . . . . . 2 . . . . 1 . . . . . . . . 3 . . . . . . . 1 . 1 3 . Phase Generator 1 | . . . . . . . . . . . . . . . . . . . . . . . . . . . . . . . 1 Network Hub 3 | . . . . . . . . . . . . . . . . . . . . . . . 3 . . . . . . . . Energy Cycler 2 | . . . . . . . . . . . . . . . . . . . . . . . . . 1 . . . . 1 . Machines Repaired . | . . . . . . . . . . . . . . . . . . . . . . . . . . . . . . . . Machines Dismantled . | . . . . . . . . . . . . . . . . . . . . . . . . . . . . . . . . Machines Sabotaged . | . . . . . . . . . . . . . . . . . . . . . . . . . . . . . . . . Overloaded Fab Kills . | . . . . . . . . . . . . . . . . . . . . . . . . . . . . . . . . Hacking | -11 -10 -10 -10 -8 -6 -6 -6 -6 -5 -5 -5 -5 -5 -5 -5 -4 -4 -4 -4 -4 -4 -4 -4 -3 -3 -3 -2 -2 -2 -1 -1 --------- Run | Yrd Mat Min Sub Rec Fac Low Low Zio Pro Fac Was Fac Upp Upp War Pro Fac Was Fac Ext Cet Arc Hub Res Arm Lab Res Qua Sec Acc Com Machines Accessed 61 | . 6 . 2 7 13 . . . . 3 . 6 1 . 5 . 5 . 5 . 1 1 . 2 . . 1 2 . 1 . Terminals 20 | . 6 . . 6 7 . . . . . . . . . . . . . . . 1 . . . . . . . . . . Fabricators 13 | . . . . . 2 . . . . 1 . 4 . . . . 3 . 2 . . . . 1 . . . . . . . Repair Stations 1 | . . . . . 1 . . . . . . . . . . . . . . . . . . . . . . . . . . Recycling Units 1 | . . . . 1 . . . . . . . . . . . . . . . . . . . . . . . . . . . Scanalyzers 6 | . . . . . 1 . . . . . . 2 . . . . 2 . . . . . . . . . . 1 . . . Garrison Access 11 | . . . . . 2 . . . . 2 . . . . . . . . 3 . . . . 1 . . 1 1 . 1 . Total Hacks 170 | . 14 . 2 14 29 . . . . 4 . 14 4 . 20 . 13 . 14 . 2 25 . 6 . . 2 6 . 1 . Successful 106 | . 6 . 2 9 17 . . . . 1 . 10 4 . 20 . 3 . 5 . . 25 . 2 . . 1 1 . . . Failed 64 | . 8 . . 5 12 . . . . 3 . 4 . . . . 10 . 9 . 2 . . 4 . . 1 5 . 1 . Catastrophic 12 | . . . . 1 3 . . . . . . . . . . . 2 . . . 1 . . 2 . . . 2 . 1 . Database Lockouts . | . . . . . . . . . . . . . . . . . . . . . . . . . . . . . . . . Manual 274 | . 12 . . 8 6 . . . . 25 . 36 . . . . 24 . 22 9 1 . 17 7 18 1 6 27 38 2 15 Terminals 44 | . 14 . . 13 15 . . . . . . . . . . . . . . . 2 . . . . . . . . . . Fabricators 35 | . . . . . 7 . . . . 1 . 9 . . . . 9 . 6 . . . . 3 . . . . . . . Repair Stations 3 | . . . . . 3 . . . . . . . . . . . . . . . . . . . . . . . . . . Recycling Units 1 | . . . . 1 . . . . . . . . . . . . . . . . . . . . . . . . . . . Scanalyzers 12 | . . . . . 2 . . . . . . 5 . . . . 4 . . . . . . . . . . 1 . . . Garrison Access 24 | . . . . . 2 . . . . 3 . . . . . . . . 8 . . . . 3 . . 2 5 . 1 . Terminal Hacks 61 | . 2 . 2 2 6 . . . . . . . 4 . 20 . . . . . . 25 . . . . . . . . . Record 42 | . . . . . . . . . . . . . 4 . 13 . . . . . . 25 . . . . . . . . . Part Schematic 4 | . . . . 1 3 . . . . . . . . . . . . . . . . . . . . . . . . . . Robot Schematic 1 | . . . . 1 . . . . . . . . . . . . . . . . . . . . . . . . . . . Prototype ID Bank 8 | . 1 . . . . . . . . . . . . . 7 . . . . . . . . . . . . . . . . Open Door 1 | . . . 1 . . . . . . . . . . . . . . . . . . . . . . . . . . . . Branch Access Points 1 | . . . . . 1 . . . . . . . . . . . . . . . . . . . . . . . . . . Unreport Threat 1 | . . . . . 1 . . . . . . . . . . . . . . . . . . . . . . . . . . Locate Traps 2 | . 1 . . . 1 . . . . . . . . . . . . . . . . . . . . . . . . . . Release Object 1 | . . . 1 . . . . . . . . . . . . . . . . . . . . . . . . . . . . Fabricator Hacks 16 | . . . . . 4 . . . . . . 6 . . . . 2 . 2 . . . . 2 . . . . . . . Load Schematic 9 | . . . . . 2 . . . . . . 3 . . . . 2 . 1 . . . . 1 . . . . . . . Build 7 | . . . . . 2 . . . . . . 3 . . . . . . 1 . . . . 1 . . . . . . . Repair Station Hacks 1 | . . . . . 1 . . . . . . . . . . . . . . . . . . . . . . . . . . Scan Component 1 | . . . . . 1 . . . . . . . . . . . . . . . . . . . . . . . . . . Recycling Unit Hacks . | . . . . . . . . . . . . . . . . . . . . . . . . . . . . . . . . Scanalyzer 7 | . . . . . 1 . . . . . . 4 . . . . 1 . . . . . . . . . . 1 . . . Retrieve Study 7 | . . . . . 1 . . . . . . 4 . . . . 1 . . . . . . . . . . 1 . . . Garrison Access Hacks 7 | . . . . . 2 . . . . 1 . . . . . . . . 3 . . . . . . . 1 . . . . Seal Access 7 | . . . . . 2 . . . . 1 . . . . . . . . 3 . . . . . . . 1 . . . . Unauthorized Hacks 14 | . 4 . . 7 3 . . . . . . . . . . . . . . . . . . . . . . . . . . Terminals 13 | . 4 . . 6 3 . . . . . . . . . . . . . . . . . . . . . . . . . . Botnet 3 | . . . . . 3 . . . . . . . . . . . . . . . . . . . . . . . . . . Skim 10 | . 4 . . 6 . . . . . . . . . . . . . . . . . . . . . . . . . . . Fabricators . | . . . . . . . . . . . . . . . . . . . . . . . . . . . . . . . . Repair Stations . | . . . . . . . . . . . . . . . . . . . . . . . . . . . . . . . . Recycling Units 1 | . . . . 1 . . . . . . . . . . . . . . . . . . . . . . . . . . . Tunnel 1 | . . . . 1 . . . . . . . . . . . . . . . . . . . . . . . . . . . Scanalyzers . | . . . . . . . . . . . . . . . . . . . . . . . . . . . . . . . . Garrison Access . | . . . . . . . . . . . . . . . . . . . . . . . . . . . . . . . . Data Cores Recovered 4 | . . . . . . . . . . . . . . . . . . . 1 . . . . 1 . . . . 1 1 . Used . | . . . . . . . . . . . . . . . . . . . . . . . . . . . . . . . . Hacking Detections 43 | . 6 . . 5 10 . . . . 3 . 6 . . . . 4 . 4 . 1 . . 2 . . . 1 . 1 . Full Trace Events 13 | . . . . 1 3 . . . . . . 4 . . . . 2 . 1 . . . . 1 . . . 1 . . . Feedback Events 1 | . . . . . . . . . . . . . . . . . . . . . . . . . . . . 1 . . . Corruption 1 | . . . . . . . . . . . . . . . . . . . . . . . . . . . . 1 . . . Feedback Blocked . | . . . . . . . . . . . . . . . . . . . . . . . . . . . . . . . . Robot Schematics Acquired 13 | . . . . 1 . . . . . 4 . 3 . . . . . . 4 . . . . . . . . . 1 . . Robots Built . | . . . . . . . . . . . . . . . . . . . . . . . . . . . . . . . . Authchips . | . . . . . . . . . . . . . . . . . . . . . . . . . . . . . . . . Time . | . . . . . . . . . . . . . . . . . . . . . . . . . . . . . . . . Total Robot Build Rating . | . . . . . . . . . . . . . . . . . . . . . . . . . . . . . . . . Part Schematics Acquired 176 | . . . . 2 16 5 2 7 1 28 4 46 1 . . . 10 . 10 . . . . . 10 . . 8 26 . . Parts Built 8 | . . . . . 3 . . . . . . 3 . . . . . . 1 . . . . 1 . . . . . . . Authchips . | . . . . . . . . . . . . . . . . . . . . . . . . . . . . . . . . Time 1084 | . . . . . 164 . . . . . . 493 . . . . . . 240 . . . . 187 . . . . . . . Total Part Build Rating 58 | . . . . . 19 . . . . . . 22 . . . . . . 10 . . . . 7 . . . . . . . Part Studies Acquired 7 | . . . . . 1 . . . . . . 4 . . . . 1 . . . . . . . . . . 1 . . . Parts Repaired . | . . . . . . . . . . . . . . . . . . . . . . . . . . . . . . . . Time . | . . . . . . . . . . . . . . . . . . . . . . . . . . . . . . . . Parts Recycled . | . . . . . . . . . . . . . . . . . . . . . . . . . . . . . . . . Recycled Matter . | . . . . . . . . . . . . . . . . . . . . . . . . . . . . . . . . Retrieved Matter . | . . . . . . . . . . . . . . . . . . . . . . . . . . . . . . . . Retrieved Components . | . . . . . . . . . . . . . . . . . . . . . . . . . . . . . . . . Parts Scanalyzed . | . . . . . . . . . . . . . . . . . . . . . . . . . . . . . . . . Part Schematics Acquired . | . . . . . . . . . . . . . . . . . . . . . . . . . . . . . . . . Parts Damaged . | . . . . . . . . . . . . . . . . . . . . . . . . . . . . . . . . Bothacking | -11 -10 -10 -10 -8 -6 -6 -6 -6 -5 -5 -5 -5 -5 -5 -5 -4 -4 -4 -4 -4 -4 -4 -4 -3 -3 -3 -2 -2 -2 -1 -1 ------------ Run | Yrd Mat Min Sub Rec Fac Low Low Zio Pro Fac Was Fac Upp Upp War Pro Fac Was Fac Ext Cet Arc Hub Res Arm Lab Res Qua Sec Acc Com Used RIF Installer . | . . . . . . . . . . . . . . . . . . . . . . . . . . . . . . . . Robots Hacked 1 | . . . . . . . . . . . . 1 . . . . . . . . . . . . . . . . . . . Non-combat . | . . . . . . . . . . . . . . . . . . . . . . . . . . . . . . . . Combat 1 | . . . . . . . . . . . . 1 . . . . . . . . . . . . . . . . . . . Robot Hacks Applied 1 | . . . . . . . . . . . . 1 . . . . . . . . . . . . . . . . . . . parse_system 1 | . . . . . . . . . . . . 1 . . . . . . . . . . . . . . . . . . . Relay Couplers Released 3 | . . . . . 2 . . . . . . . . . . . . . 1 . . . . . . . . . . . . Machine Destruction 3 | . . . . . 2 . . . . . . . . . . . . . 1 . . . . . . . . . . . . Fabnet Peak Effective % . | . . . . . . . . . . . . . . . . . . . . . . . . . . . . . . . . Robots Rewired 5 | . . . . . . . . . 2 . . . . 3 . . . . . . . . . . . . . . . . . Allies Hacked . | . . . . . . . . . . . . . . . . . . . . . . . . . . . . . . . . Hacks Repelled . | . . . . . . . . . . . . . . . . . . . . . . . . . . . . . . . . Allies | -11 -10 -10 -10 -8 -6 -6 -6 -6 -5 -5 -5 -5 -5 -5 -5 -4 -4 -4 -4 -4 -4 -4 -4 -3 -3 -3 -2 -2 -2 -1 -1 -------- Run | Yrd Mat Min Sub Rec Fac Low Low Zio Pro Fac Was Fac Upp Upp War Pro Fac Was Fac Ext Cet Arc Hub Res Arm Lab Res Qua Sec Acc Com Total Allies 156 | . . . . . . . . 4 2 . 19 4 . 3 . . 1 . . 9 5 . 13 2 4 . . . . 65 25 Largest Group 25 | . . . . . . . . 4 5 . 19 4 . 3 3 . 1 . . 7 8 8 15 3 5 . . . . 25 10 Highest-Rated Group 1287 | . . . . . . . . 157 196 . 684 340 . 90 90 . 25 . . 502 771 771 1287 295 494 . . . . 355 138 Highest-Rated Ally 159 | . . . . . . . . 41 49 . 50 85 . 30 30 . 25 . . 159 159 159 96 103 103 . . . . 50 15 Zionite Dispatches 14 | . . . . . . . . . . . . 2 . . . . 1 . 1 2 . . 4 1 2 . . . . 1 . Heavy 3 | . . . . . . . . . . . . 2 . . . . . . . . . . . 1 . . . . . . . Light 2 | . . . . . . . . . . . . . . . . . . . . . . . 1 . 1 . . . . . . Recon 1 | . . . . . . . . . . . . . . . . . . . 1 . . . . . . . . . . . . Fire 1 | . . . . . . . . . . . . . . . . . . . . . . . 1 . . . . . . . . Hacker 4 | . . . . . . . . . . . . . . . . . . . . 2 . . 2 . . . . . . . . Demo 1 | . . . . . . . . . . . . . . . . . . . . . . . . . . . . . . 1 . Defense Resupply 1 | . . . . . . . . . . . . . . . . . 1 . . . . . . . . . . . . . . Hover Resupply 1 | . . . . . . . . . . . . . . . . . . . . . . . . . 1 . . . . . . Total Orders 17 | . . . . . . . . . . . . . . . . . 1 . 1 . . . . 1 . . . . . . 14 STAY 1 | . . . . . . . . . . . . . . . . . . . . . . . . 1 . . . . . . . FOLLOW 1 | . . . . . . . . . . . . . . . . . . . . . . . . . . . . . . . 1 DROP 1 | . . . . . . . . . . . . . . . . . 1 . . . . . . . . . . . . . . EXPLORE 8 | . . . . . . . . . . . . . . . . . . . 1 . . . . . . . . . . . 7 RETURN 6 | . . . . . . . . . . . . . . . . . . . . . . . . . . . . . . . 6 Ally Attacks 714 | . . . . . . . . . 33 . 17 60 . . 6 . . . . 17 . . 151 8 22 . . . . 331 69 Total Damage 18688 | . . . . . . . . . 668 . 465 3174 . . 119 . . . . 1257 . . 4077 588 1059 . . . . 6335 946 Kills 107 | . . . . . . . . . 6 . 2 21 . . . . . . . 7 . . 23 6 2 . . . . 35 5 Allies Corrupted 8 | . . . . . . . . . . . . . . . . . 1 . . . . . 6 . . . . . . . 1 Allies Melted 3 | . . . . . . . . . . . 2 . . . 1 . . . . . . . . . . . . . . . . Intel | -11 -10 -10 -10 -8 -6 -6 -6 -6 -5 -5 -5 -5 -5 -5 -5 -4 -4 -4 -4 -4 -4 -4 -4 -3 -3 -3 -2 -2 -2 -1 -1 ------- Run | Yrd Mat Min Sub Rec Fac Low Low Zio Pro Fac Was Fac Upp Upp War Pro Fac Was Fac Ext Cet Arc Hub Res Arm Lab Res Qua Sec Acc Com Active Infowar (turns) 11668 | . . . . . . . . . . . . . . . . . 45 61 1000 451 221 6086 609 273 422 9 80 226 272 1087 826 Optics 826 | . . . . . . . . . . . . . . . . . . . . . . . . . . . . . . . 826 Sensors 1 | . . . . . . . . . . . . . . . . . . . . . . . . . . . . . . 1 . Cloaking 1952 | . . . . . . . . . . . . . . . . . . . . . . . . . 278 9 80 226 272 1087 . Jamming 9801 | . . . . . . . . . . . . . . . . . 45 61 1000 451 221 6086 609 273 422 9 80 226 272 46 . Robot Analysis Total . | . . . . . . . . . . . . . . . . . . . . . . . . . . . . . . . . Derelict Logs Recovered 14 | . . 1 1 . . 2 1 1 1 . . . 2 2 . 3 . . . . . . . . . . . . . . . Drone Launches 9 | . . . . . . . . . . . . . . . . . . . 2 . . . . . . . . . . . 7 Drone Recoveries 5 | . . . . . . . . . . . . . . . . . . . . . . . . . . . . . . . 5 Zionite Intel Received 51 | . . . . . . . . . . 5 . 7 . . . . 5 . 5 . . . 1 1 3 . 1 8 11 . 4 Main Access 1 | . . . . . . . . . . . . . . . . . . . . . . . 1 . . . . . . . . Branch Access 6 | . . . . . . . . . . . . 1 . . . . 1 . 1 . . . . 1 . . 1 . 1 . . Emergency Access 4 | . . . . . . . . . . . . . . . . . 1 . . . . . . . . . . 1 1 . 1 Guard Positions 3 | . . . . . . . . . . . . . . . . . . . . . . . . . . . . 1 1 . 1 Component Stockpiles 3 | . . . . . . . . . . 1 . . . . . . . . 1 . . . . . . . . 1 . . . Prototype Stockpiles 3 | . . . . . . . . . . 1 . . . . . . . . . . . . . . 1 . . . 1 . . Component Schematics 2 | . . . . . . . . . . . . 1 . . . . . . . . . . . . . . . . 1 . . Prototype Schematics 9 | . . . . . . . . . . 2 . 2 . . . . 1 . 1 . . . . . 1 . . 1 1 . . Unaware Schematics 3 | . . . . . . . . . . 1 . 1 . . . . . . 1 . . . . . . . . . . . . Unaware Analyses 6 | . . . . . . . . . . . . . . . . . 1 . . . . . . . . . . 2 3 . . Trap Installations 2 | . . . . . . . . . . . . . . . . . . . . . . . . . 1 . . . . . 1 Active Terminals 3 | . . . . . . . . . . . . 1 . . . . . . . . . . . . . . . . 1 . 1 Active Garrisons 1 | . . . . . . . . . . . . . . . . . . . . . . . . . . . . . 1 . . Depthwide Sectors/0 3 | . . . . . . . . . . . . . . . . . 1 . 1 . . . . . . . . 1 . . . Depthwide Sectors/-1 2 | . . . . . . . . . . . . 1 . . . . . . . . . . . . . . . 1 . . . Exploration | -11 -10 -10 -10 -8 -6 -6 -6 -6 -5 -5 -5 -5 -5 -5 -5 -4 -4 -4 -4 -4 -4 -4 -4 -3 -3 -3 -2 -2 -2 -1 -1 ------------- Run | Yrd Mat Min Sub Rec Fac Low Low Zio Pro Fac Was Fac Upp Upp War Pro Fac Was Fac Ext Cet Arc Hub Res Arm Lab Res Qua Sec Acc Com Turns Passed 27002 | 38 848 563 777 762 1781 520 352 673 409 1014 335 2035 482 393 777 352 411 61 1017 451 221 6086 609 273 422 9 80 231 272 1340 3408 Spaces Moved 28795 | 38 770 608 833 870 2343 807 594 878 573 1675 225 2951 760 592 679 690 896 108 1591 641 109 108 555 614 497 19 181 721 646 1739 4484 Core 538 | 7 . . 445 86 . . . . . . . . . . . . . . . . . . . . . . . . . . . Treads . | . . . . . . . . . . . . . . . . . . . . . . . . . . . . . . . . Legs . | . . . . . . . . . . . . . . . . . . . . . . . . . . . . . . . . Wheels 430 | 31 399 . . . . . . . . . . . . . . . . . . . . . . . . . . . . . . Hover 27811 | . 371 608 388 784 2343 807 594 878 573 1675 225 2951 760 592 679 690 896 108 1591 641 109 108 555 614 497 19 181 721 646 1739 4468 Flight . | . . . . . . . . . . . . . . . . . . . . . . . . . . . . . . . . Fastest Speed 13 | 50 60 60 50 48 48 52 52 52 52 45 45 43 43 43 38 38 32 32 26 26 26 26 26 26 16 28 28 13 20 20 20 Average Speed 38 | 90 80 60 66 54 52 52 52 52 52 47 48 46 43 43 40 38 33 32 26 26 26 26 26 26 26 28 28 23 20 20 20 Slowest Speed 120 | 100 100 120 100 120 56 52 52 108 108 52 52 52 43 43 43 38 38 32 108 26 26 26 26 26 28 28 28 28 20 23 20 Overloaded Moves 32 | . . . . . . . . . . . . . . . . . . . . . . . . . 1 . . 31 . . . Propulsion Burnouts . | . . . . . . . . . . . . . . . . . . . . . . . . . . . . . . . . Robots Hopped . | . . . . . . . . . . . . . . . . . . . . . . . . . . . . . . . . Potential Cave-ins 13 | . . . . . . . . . . 1 . 3 . . 1 . . . 1 . . . . . . . . . . . 7 Cave-ins Triggered 1 | . . . . . . . . . . 1 . . . . . . . . . . . . . . . . . . . . . Spacefolds 5 | . . . . . . . . . . . . . . . . . . . . . . . . . . . . . . . 5 Exploration Rate (%) 63 | 3 91 98 56 98 62 93 84 87 72 50 77 61 89 85 81 78 30 92 54 81 60 79 64 16 45 6 6 86 40 51 70 Regions Visited 31 Branch Regions 20 Pre-discovered Areas 35 | . . 1 . 2 . . 1 . . . . 8 1 1 . 1 8 . 8 . . . . . . . . 4 . . . Known Exits Taken 21 | . . . . . 1 1 1 1 1 . . 1 1 1 1 1 . . 1 1 1 1 1 1 1 1 1 . 1 1 . Unknown Exits Taken 6 | 1 1 1 1 1 . . . . . . . . . . . . . . . . . . . . . . . 1 . . . Scrap Searched 40 | . . 1 14 . . 4 8 2 4 . . . 3 3 . 1 . . . . . . . . . . . . . . . Spaces Dug 3978 | . . . . 4 14 7 5 . 3 28 . 77 159 55 . 49 139 10 12 52 . . 25 23 14 . 8 . 43 20 3231 Terrain Destroyed 12638 | . . 5 . 15 403 11 8 . 12 45 10 288 456 197 196 330 297 119 750 287 43 24 1018 137 519 . 8 55 240 1389 5776 Melee . | . . . . . . . . . . . . . . . . . . . . . . . . . . . . . . . . Projectile 11270 | . . . . 15 36 11 8 . 12 45 10 217 456 197 196 330 263 119 571 287 43 24 515 137 472 . 8 55 210 1320 5713 AOE 1368 | . . 5 . . 367 . . . . . . 71 . . . . 34 . 179 . . . 503 . 47 . . . 30 69 63 Terrain Rammed . | . . . . . . . . . . . . . . . . . . . . . . . . . . . . . . . . Walls Destroyed . | . . . . . . . . . . . . . . . . . . . . . . . . . . . . . . . . Machines Disabled . | . . . . . . . . . . . . . . . . . . . . . . . . . . . . . . . . Actions | -11 -10 -10 -10 -8 -6 -6 -6 -6 -5 -5 -5 -5 -5 -5 -5 -4 -4 -4 -4 -4 -4 -4 -4 -3 -3 -3 -2 -2 -2 -1 -1 --------- Run | Yrd Mat Min Sub Rec Fac Low Low Zio Pro Fac Was Fac Upp Upp War Pro Fac Was Fac Ext Cet Arc Hub Res Arm Lab Res Qua Sec Acc Com Total 42291 | 40 907 750 986 1113 2788 905 631 1091 677 1887 452 3618 915 729 1182 779 996 121 2010 819 289 6157 849 692 646 19 208 766 737 2310 6222 Wait 9491 | . 39 65 57 167 158 43 14 210 22 68 62 419 72 59 333 32 21 1 194 59 175 6044 160 27 20 . 27 18 41 175 709 Move 28753 | 37 769 607 832 869 2342 806 593 877 572 1674 224 2950 759 591 678 689 896 107 1590 640 108 107 554 613 496 18 180 720 645 1738 4472 Hop . | . . . . . . . . . . . . . . . . . . . . . . . . . . . . . . . . Pick Up 38 | . . 1 2 2 3 . 2 . . . 1 2 1 . 2 . 3 . 4 2 . 1 1 . . . . 1 1 . 9 Fast Attach 121 | 3 6 2 4 11 13 1 . 1 1 3 1 20 . . 5 . 5 . 10 . . . . 1 2 . . 6 . 18 8 Attach 16 | . . . . 1 1 . . 1 1 . . 1 . . 2 . 2 . 2 . . . . . . . . . . 1 4 Detach 11 | . . . . . 1 . . 1 1 . 1 2 . . 1 . 2 . 1 . . . . . . . . . . . 1 Swap 34 | . . 1 . 2 4 1 . . 4 3 2 . . . . . . . 1 . . . 1 . 2 . . 1 . 2 10 Drop 130 | . 4 2 5 9 13 . 2 1 1 3 4 19 1 . 8 . 5 . 6 1 . 1 1 1 3 . . 5 . 17 18 Fire 2752 | . 87 55 68 39 163 44 16 . 52 127 123 174 72 41 144 52 51 12 130 57 6 4 85 24 72 1 1 9 28 239 776 Melee 1 | . . . . . . . . . . . . 1 . . . . . . . . . . . . . . . . . . . Ram . | . . . . . . . . . . . . . . . . . . . . . . . . . . . . . . . . Kick . | . . . . . . . . . . . . . . . . . . . . . . . . . . . . . . . . Crush . | . . . . . . . . . . . . . . . . . . . . . . . . . . . . . . . . Escape Stasis 108 | . . . . . 38 . . . . 1 . . . . . . . . . 52 . . . . 17 . . . . . . Rewire 60 | . . . . . . . . . 15 . . . . 38 . . . . . . . . . . . . . . . . 7 Trap . | . . . . . . . . . . . . . . . . . . . . . . . . . . . . . . . . Miscellaneous 776 | . 2 17 18 13 52 10 4 . 8 8 34 30 10 . 9 6 11 1 72 8 . . 47 26 34 . . 6 22 120 208 Route ------- -11/Scrapyard -10/Materials (discovered 5 exits: [*Mat x3] / [*Min x2]) -10/Mines (discovered 3 exits: [*Mat x2] / *Sub) -10/Subcaves (discovered 2 exits: [*Mat] / *Rec) -8/Recycling (discovered 2 exits: *Fac / Scr) -6/Factory (discovered 5 exits: *Fac x3 / *Low x2) -6/Lower Caves -6/Lower Caves (discovered 2 exits: *Fac / *Zio) -6/Zion -5/Proximity Caves -5/Factory (discovered 3 exits: *Fac x2 / *Upp) -5/Waste -5/Factory (discovered 4 exits: *Fac x2 / *Upp x2) -5/Upper Caves -5/Upper Caves (discovered 2 exits: *Fac / *War) -5/Warlord -4/Proximity Caves -4/Factory (discovered 7 exits: *Res x3 / Upp x2 / Ext x2) -4/Waste -4/Factory (discovered 7 exits: *Res x3 / *Upp x2 / *Ext x2) -4/Extension (discovered 2 exits: *Res / *Cet) -4/Cetus -4/Archives (discovered 3 exits: *Res / *Hub x2) -4/Hub_04(d) (discovered 4 exits: *Res x4) -3/Research (discovered 3 exits: *Arm / Tes x2) -3/Armory (discovered 3 exits: *Res x2 / *Lab) -3/Lab -2/Research (discovered 2 exits: *Qua x2) -2/Quarantine (discovered 2 exits: *Sec / [*Frg]) -2/Section 7 -1/Access (discovered 2 exits: *Sur / *Com) -1/Command (discovered 2 exits: *Sur x2) To Fleet Rendezvous History --------- Turn | Location | Event 5 | -11/Scrapyard | Discovered new exit (range 15) 39 | -11/Scrapyard | Entered Materials 255 | -10/Materials | Discovered new exit (range 7) 277 | -10/Materials | Discovered new exit (range 7) 307 | -10/Materials | Build established: Mutant 416 | -10/Materials | Discovered new exit (range 7) 529 | -10/Materials | Discovered new exit (range 15) 621 | -10/Materials | Discovered new exit (range 10) 683 | -10/Materials | Reached level 2 779 | -10/Materials | Upgraded with Utility slot (x1) 887 | -10/Materials | Entered Mines 889 | -10/Mines | Core integrity fell below 50% 902 | -10/Mines | Reached level 3 953 | -10/Mines | Met a Derelict bent on vengeance 953 | -10/Mines | Discovered new exit (range 6) 1009 | -10/Mines | Learned location of Zion (-6) 1094 | -10/Mines | Upgraded with Utility slot (x1) 1135 | -10/Mines | A weapon hastily lodged in a ceiling crevice suddenly fell to the ground 1184 | -10/Mines | Discovered new exit (range 9) 1252 | -10/Mines | Excavation squad dispatched 1252 | -10/Mines | A large section of the Mines collapsed 1448 | -10/Mines | Discovered new exit (range 5) 1450 | -10/Mines | Entered Subcaves 1451 | -10/Subcaves | Approached by a straggling Scientist 1452 | -10/Subcaves | Reached level 4 1476 | -10/Subcaves | A swath of the cavern ceiling suddenly collapsed 1550 | -10/Subcaves | Discovered new exit (range 10) 1649 | -10/Subcaves | Found SUBCON Basin 1996 | -10/Subcaves | Disturbed a concealed Subdweller 2046 | -10/Subcaves | Discovered new exit (range 16) 2105 | -10/Subcaves | Disturbed a concealed Subdweller 2111 | -10/Subcaves | Disturbed a concealed Subdweller 2136 | -10/Subcaves | Disturbed a concealed Subdweller 2153 | -10/Subcaves | Core integrity fell below 20% 2227 | -10/Subcaves | Entered Recycling 2229 | -8/Recycling | Reached level 5 2278 | -8/Recycling | Upgraded with Utility slot (x1) 2329 | -8/Recycling | Upgraded with Propulsion slot (x2) 2609 | -8/Recycling | Reached level 6 2623 | -8/Recycling | Discovered new exit (range 15) 2675 | -8/Recycling | Upgraded with Propulsion slot (x1) 2755 | -8/Recycling | Scanned before Scraplab entrance 2762 | -8/Recycling | Entered Scraplab 2801 | -8/Recycling | Upgraded with Utility slot (x1) 2802 | -8/Recycling | Learned Storage stockpile data 2835 | -8/Recycling | Learned location of 2 exits from Factory 2860 | -8/Recycling | Learned Storage trap positions 2873 | -8/Recycling | Tech Extrapolator generated special schematic: Deep Structural Scanner 2885 | -8/Recycling | Learned Storage trap positions 2893 | -8/Recycling | Learned Factory stockpile data 2944 | -8/Recycling | Learned Factory emergency access door positions 2983 | -8/Recycling | Identified exit to Scraptown 2989 | -8/Recycling | Entered Factory 2990 | -6/Factory | Identified exit to Factory 2991 | -6/Factory | Reached level 7 3089 | -6/Factory | Reached level 8 3099 | -6/Factory | Identified exit to Lower Caves 3150 | -6/Factory | Core integrity fell below 50% 3185 | -6/Factory | Upgraded with Utility slot (x1) 3473 | -6/Factory | Discovered exit to Factory (range 16) 3588 | -6/Factory | Reached level 9 3723 | -6/Factory | Tech Extrapolator generated special schematic: Energy Deflector 4065 | -6/Factory | Reached level 10 4285 | -6/Factory | Upgraded with Utility slot (x1) 4363 | -6/Factory | Fabricated Quantum Capacitor? 4489 | -6/Factory | Reached level 11 4601 | -6/Factory | Reached level 12 4629 | -6/Factory | Reached level 13 4671 | -6/Factory | Fabricated Tactical Coordination Suite (x1) 4676 | -6/Factory | Upgraded with Utility slot (x1) 4701 | -6/Factory | Reached level 14 4739 | -6/Factory | First assault squad dispatched 4770 | -6/Factory | Entered Lower Caves 4772 | -6/Lower Caves | Reached level 15 4777 | -6/Lower Caves | Upgraded with Utility slot (x1) 4920 | -6/Lower Caves | Learned Factory trap positions 4926 | -6/Lower Caves | Encountered a Warlord checkpoint 5129 | -6/Lower Caves | Spotted B-75 Beast 5139 | -6/Lower Caves | Discovered new exit (range 7) 5141 | -6/Lower Caves | Identified exit to Lower Caves 5176 | -6/Lower Caves | Destroyed B-75 Beast 5188 | -6/Lower Caves | Learned Factory trap positions 5290 | -6/Lower Caves | Entered another Lower Caves area 5292 | -6/Lower Caves | Reached level 16 5297 | -6/Lower Caves | Discovered exit to Factory (range 9) 5550 | -6/Lower Caves | Learned location of Extension (-4) 5579 | -6/Lower Caves | Encountered a Warlord checkpoint 5615 | -6/Lower Caves | Discovered new exit (range 4) 5617 | -6/Lower Caves | Identified exit to Zion 5642 | -6/Lower Caves | Entered Zion 5672 | -6/Zion | System corruption cleaned by Quarantine Array 5691 | -6/Zion | Discovered new exit (range 15) 5805 | -6/Zion | Received a visual enhancement algorithm 5890 | -6/Zion | Given A8's code to call for help 5926 | -6/Zion | Tech Extrapolator generated special schematic: Mak. Core Shielding 6010 | -6/Zion | Met Imprinter 6010 | -6/Zion | Reached level 17 6020 | -6/Zion | Imprinted 6022 | -6/Zion | Declared Zion's savior 6032 | -6/Zion | Upgraded with Utility slot (x1) 6116 | -6/Zion | Identified exit to Proximity Caves 6315 | -6/Zion | Entered Proximity Caves 6315 | -5/Proximity Caves | Accompanied by 4 allies 6353 | -5/Proximity Caves | Reached level 18 6478 | -5/Proximity Caves | Attracted the attention of an 0b10 checkpoint 6571 | -5/Proximity Caves | Learned location of 1 exit from Factory 6626 | -5/Proximity Caves | Attracted the attention of an 0b10 outpost 6640 | -5/Proximity Caves | Reached level 19 6717 | -5/Proximity Caves | Discovered exit to Factory (range 10) 6724 | -5/Proximity Caves | Entered Factory 6725 | -5/Factory | Identified exit to Factory 6726 | -5/Factory | Loaded intel: 108 trap records 6726 | -5/Factory | Reached level 20 6957 | -5/Factory | Retrieved Zion intel report: Prototype Stockpiles 6992 | -5/Factory | Reached level 21 7047 | -5/Factory | Upgraded with Utility slot (x1) 7085 | -5/Factory | Discovered new exit (range 15) 7106 | -5/Factory | Identified exit to Upper Caves 7277 | -5/Factory | Garrison activated, responded to threat 7310 | -5/Factory | Retrieved Zion intel report: Prototype Schematics 7354 | -5/Factory | Retrieved Zion intel report: Component Stockpiles 7402 | -5/Factory | Retrieved Zion intel report: Prototype Schematics 7408 | -5/Factory | Retrieved Zion intel report: Unaware Schematics 7527 | -5/Factory | Garrison activated, responded to threat 7648 | -5/Factory | Crushed by falling debris 7649 | -5/Factory | Core integrity fell below 50% 7649 | -5/Factory | Core integrity fell below 20% 7695 | -5/Factory | Discovered exit to Factory (range 15) 7738 | -5/Factory | Sucked down chute 7738 | -5/Factory | Entered Waste 7747 | -5/Waste | Spotted C-40 Crusher 7747 | -5/Waste | Spotted C-40 Crusher 7754 | -5/Waste | Spotted C-40 Crusher 7770 | -5/Waste | Spotted C-40 Crusher 7770 | -5/Waste | Discovered new exit (range 10) 7772 | -5/Waste | Destroyed C-40 Crusher 7793 | -5/Waste | Destroyed C-40 Crusher 7801 | -5/Waste | Spotted C-40 Crusher 7802 | -5/Waste | Destroyed C-40 Crusher 7812 | -5/Waste | Destroyed C-40 Crusher 7826 | -5/Waste | Spotted C-40 Crusher 7837 | -5/Waste | Warlord forces began an assault 7838 | -5/Waste | Allies destroyed C-40 Crusher 7843 | -5/Waste | Allies destroyed C-40 Crusher 7924 | -5/Waste | Murdered 10 allies 8065 | -5/Waste | Murdered 6 allies 8070 | -5/Waste | Identified exit to Factory 8073 | -5/Waste | Entered Factory 8074 | -5/Factory | Loaded intel: 116 trap records 8103 | -5/Factory | Discovered exit to Upper Caves (range 16) 8138 | -5/Factory | Zion Heavy squad teleported in 8264 | -5/Factory | Reached level 22 8491 | -5/Factory | Retrieved Zion intel report: Component Schematics 8507 | -5/Factory | Discovered exit to Factory (range 8) 8517 | -5/Factory | Retrieved Zion intel report: Branch Access 8518 | -5/Factory | Zion Heavy squad teleported in 8640 | -5/Factory | Tech Extrapolator generated special schematic: Machine Rigger 8709 | -5/Factory | Cargo convoy interrupted 8775 | -5/Factory | Retrieved Zion intel report: Unaware Schematics 8807 | -5/Factory | Found Prototype Device 8807 | -5/Factory | Identified Adv. Particle Accelerator 8811 | -5/Factory | Found Prototype Device 8811 | -5/Factory | Identified Exp. Thermal Shield 8816 | -5/Factory | Found Prototype Launcher 8816 | -5/Factory | Identified Enh. Gamma Bomb Array 8930 | -5/Factory | Retrieved Zion intel report: Depthwide Sectors/-4 8955 | -5/Factory | Retrieved Zion intel report: Prototype Schematics 8961 | -5/Factory | Retrieved Zion intel report: Prototype Schematics 9074 | -5/Factory | Build established: Scientist-Mutant 9095 | -5/Factory | Discovered exit to Factory (range 16) 9098 | -5/Factory | Lost 3 allies 9126 | -5/Factory | Retrieved Zion intel report: Active Terminals 9232 | -5/Factory | Reached level 23 9384 | -5/Factory | Tech Extrapolator generated special schematic: Hyp. Alpha Cannon 9494 | -5/Factory | Terminal network hard line cut 9573 | -5/Factory | First assault squad dispatched 9793 | -5/Factory | Fabricated Hyp. Alpha Cannon (x1) 9808 | -5/Factory | Fabricated Prc. Energy Filter? 9985 | -5/Factory | Fabricated Prc. Energy Filter? 10014 | -5/Factory | Spotted B-75 Beast 10108 | -5/Factory | Entered Upper Caves 10187 | -5/Upper Caves | Build established: Machinist-Mutant 10188 | -5/Upper Caves | Learned 4 Factory zone layouts 10249 | -5/Upper Caves | Learned Factory emergency access door positions 10255 | -5/Upper Caves | Learned location of Armory (-3) 10255 | -5/Upper Caves | Learned Factory emergency access door positions 10255 | -5/Upper Caves | Learned Extension emergency access door positions 10255 | -5/Upper Caves | Learned Armory security intel 10380 | -5/Upper Caves | Acquired the password to a Derelict Tinkerer's latest research 10438 | -5/Upper Caves | Reached level 24 10544 | -5/Upper Caves | Discovered new exit (range 11) 10549 | -5/Upper Caves | Identified exit to Upper Caves 10590 | -5/Upper Caves | Entered another Upper Caves area 10632 | -5/Upper Caves | Discovered exit to Factory (range 14) 10647 | -5/Upper Caves | Destroyed 12 combat bots 10784 | -5/Upper Caves | Learned 8 Factory zone layouts 10909 | -5/Upper Caves | Discovered new exit (range 14) 10940 | -5/Upper Caves | Identified exit to Warlord 10983 | -5/Upper Caves | Entered Warlord 10983 | -5/Warlord | Accompanied by 3 allies 11124 | -5/Warlord | Found Prototype Device 11124 | -5/Warlord | Identified Exp. Phase Shifter 11140 | -5/Warlord | Found Prototype Reactor 11211 | -5/Warlord | Rebuked by Warlord 11214 | -5/Warlord | Warlord's base attacked by MAIN.C 11305 | -5/Warlord | Destroyed 10 combat bots 11389 | -5/Warlord | Destroyed 8 combat bots 11483 | -5/Warlord | Destroyed 10 combat bots 11544 | -5/Warlord | Destroyed Striker 11552 | -5/Warlord | Destroyed Striker 11564 | -5/Warlord | Warlord forces counterattacked 11574 | -5/Warlord | Lost 3 allies 11575 | -5/Warlord | Reached level 25 11576 | -5/Warlord | Upgraded with Propulsion slot (x1) 11590 | -5/Warlord | Destroyed Striker 11616 | -5/Warlord | Destroyed 16 combat bots 11655 | -5/Warlord | Destroyed 10 combat bots 11662 | -5/Warlord | Lost 3 allies 11715 | -5/Warlord | Spotted Striker 11715 | -5/Warlord | Spotted Striker 11721 | -5/Warlord | Destroyed Striker 11746 | -5/Warlord | Discovered new exit (range 9) 11749 | -5/Warlord | Identified exit to Proximity Caves 11751 | -5/Warlord | Destroyed 10 combat bots 11757 | -5/Warlord | Lost 5 allies 11760 | -5/Warlord | Entered Proximity Caves 11809 | -4/Proximity Caves | Learned 4 Research zone layouts 11854 | -4/Proximity Caves | Destroyed B-86 Titan 11967 | -4/Proximity Caves | Destroyed 7 combat bots 12017 | -4/Proximity Caves | Destroyed 7 combat bots 12112 | -4/Proximity Caves | Entered Factory 12113 | -4/Factory | Identified exit to Extension 12114 | -4/Factory | Identified exit to Research 12114 | -4/Factory | Identified exit to Upper Caves 12114 | -4/Factory | Reached level 26 12194 | -4/Factory | Upgraded with Power slot (x1) 12194 | -4/Factory | Identified Vortex Chain Reactor 12243 | -4/Factory | Discovered exit to Research (range 9) 12246 | -4/Factory | Retrieved Zion intel report: Prototype Schematics 12253 | -4/Factory | Retrieved Zion intel report: Branch Access 12361 | -4/Factory | Retrieved Zion intel report: Unaware Analyses 12362 | -4/Factory | First assault squad dispatched 12430 | -4/Factory | Retrieved Zion intel report: Emergency Access 12431 | -4/Factory | Zion Defense Resupply teleported in 12447 | -4/Factory | Discovered exit to Research (range 10) 12499 | -4/Factory | Build established: Machinist-Sprinter 12500 | -4/Factory | Retrieved Zion intel report: Depthwide Sectors/-4 12517 | -4/Factory | Reached level 27 12520 | -4/Factory | Upgraded with Propulsion slot (x1) 12523 | -4/Factory | Sucked down chute 12523 | -4/Factory | Entered Waste 12529 | -4/Waste | Spotted C-40 Crusher 12532 | -4/Waste | Destroyed C-40 Crusher 12534 | -4/Waste | Spotted C-40 Crusher 12536 | -4/Waste | Destroyed C-40 Crusher 12538 | -4/Waste | EMP discharged 12543 | -4/Waste | Spotted C-40 Crusher 12545 | -4/Waste | Destroyed C-40 Crusher 12555 | -4/Waste | Spotted C-40 Crusher 12557 | -4/Waste | Destroyed C-40 Crusher 12562 | -4/Waste | Spotted C-40 Crusher 12566 | -4/Waste | Destroyed C-40 Crusher 12572 | -4/Waste | Spotted C-40 Crusher 12581 | -4/Waste | Discovered new exit (range 11) 12583 | -4/Waste | Identified exit to Factory 12584 | -4/Waste | Entered Factory 12587 | -4/Factory | Destroyed 14 combat bots 12622 | -4/Factory | Discovered exit to Research (range 9) 12680 | -4/Factory | Retrieved Zion intel report: Branch Access 12813 | -4/Factory | Retrieved Zion intel report: Prototype Schematics 12813 | -4/Factory | Discovered exit to Research (range 13) 12935 | -4/Factory | Discovered exit to Research (range 5) 12945 | -4/Factory | Retrieved Zion intel report: Depthwide Sectors/-4 12946 | -4/Factory | Zion Recon squad teleported in 13035 | -4/Factory | Retrieved Zion intel report: Component Stockpiles 13038 | -4/Factory | Allied Derelicts emerged from ambush trap array 13041 | -4/Factory | Build established: Hacker-Sprinter 13041 | -4/Factory | Retrieved Zion intel report: Unaware Schematics 13093 | -4/Factory | High security lockdown imminent 13173 | -4/Factory | High security lockdown engaged 13240 | -4/Factory | Destroyed 12 combat bots 13285 | -4/Factory | Fabricated Hyp. Alpha Cannon (x1) 13358 | -4/Factory | Reached level 28 13360 | -4/Factory | Upgraded with Weapon slot (x1) 13361 | -4/Factory | Destroyed 19 combat bots 13429 | -4/Factory | Destroyed 14 combat bots 13461 | -4/Factory | Core integrity fell below 50% 13559 | -4/Factory | Destroyed 12 combat bots 13572 | -4/Factory | Build established: Machinist-Sprinter 13601 | -4/Factory | Entered Extension 13626 | -4/Extension | Rescued a captive Derelict 13627 | -4/Extension | Disrupted transfer network 13630 | -4/Extension | High security lockdown imminent 13635 | -4/Extension | Zion Hacker squad teleported in 13648 | -4/Extension | Zion Hacker squad teleported in 13710 | -4/Extension | High security lockdown engaged 13731 | -4/Extension | Rescued a captive Derelict 13828 | -4/Extension | Destroyed B-86 Titan 13876 | -4/Extension | Destroyed B-86 Titan 13882 | -4/Extension | Lost 3 allies 13897 | -4/Extension | Destroyed 16 combat bots 13918 | -4/Extension | Rescued a captive Derelict 13962 | -4/Extension | Rescued A7 14000 | -4/Extension | Reached level 29 14026 | -4/Extension | Discovered new exit (range 15) 14027 | -4/Extension | Discovered exit to Research (range 15) 14040 | -4/Extension | Identified exit to Cetus 14051 | -4/Extension | Destroyed 36 combat bots 14052 | -4/Extension | Entered Cetus 14052 | -4/Cetus | Accompanied by 3 allies (A7) 14057 | -4/Cetus | Acquired a Cetus Manufacturing Module code from A7 14060 | -4/Cetus | Destroyed Cetus Guard 14063 | -4/Cetus | Destroyed Cetus Guard 14063 | -4/Cetus | Destroyed Cetus Guard 14067 | -4/Cetus | Destroyed Cetus Guard 14099 | -4/Cetus | Started Cetus Manufacturing Module 14124 | -4/Cetus | Manufactured an Enhanced Grunt 14134 | -4/Cetus | Discovered new exit (range 15) 14149 | -4/Cetus | Manufactured an Enhanced Grunt 14174 | -4/Cetus | Manufactured an Enhanced Grunt 14199 | -4/Cetus | Manufactured an Enhanced Grunt 14224 | -4/Cetus | Manufactured an Enhanced Grunt 14254 | -4/Cetus | Identified exit to Archives 14273 | -4/Cetus | Entered Archives 14273 | -4/Archives | Accompanied by 8 allies (A7) 14294 | -4/Archives | Discovered new exit (range 16) 14301 | -4/Archives | Discovered new exit (range 15) 14303 | -4/Archives | Unable to access archive contents 14306 | -4/Archives | Unable to access archive contents 14306 | -4/Archives | Discovered exit to Research (range 16) 14308 | -4/Archives | Unable to access archive contents 14317 | -4/Archives | Identified exit to Hub_04(d) 20359 | -4/Archives | Entered Hub_04(d) 20359 | -4/Hub_04(d) | Accompanied by 7 allies 20398 | -4/Hub_04(d) | Zion Hacker squad teleported in 20398 | -4/Hub_04(d) | Discovered exit to Research (range 16) 20413 | -4/Hub_04(d) | Destroyed 7 combat bots 20439 | -4/Hub_04(d) | Spotted B-86 Titan 20448 | -4/Hub_04(d) | Allies destroyed B-86 Titan 20466 | -4/Hub_04(d) | Zion Hacker squad teleported in 20473 | -4/Hub_04(d) | Zion Light squad teleported in 20475 | -4/Hub_04(d) | Network Hub disabled 20486 | -4/Hub_04(d) | Discovered exit to Research (range 15) 20489 | -4/Hub_04(d) | Spotted Lightning 20492 | -4/Hub_04(d) | Spotted Lightning 20500 | -4/Hub_04(d) | Destroyed Lightning 20506 | -4/Hub_04(d) | Spotted Lightning 20514 | -4/Hub_04(d) | Destroyed Lightning 20517 | -4/Hub_04(d) | Destroyed Lightning 20538 | -4/Hub_04(d) | Found Prototype Device 20540 | -4/Hub_04(d) | Lost 10 allies 20544 | -4/Hub_04(d) | Identified Exp. EM Shield 20549 | -4/Hub_04(d) | High security lockdown imminent 20554 | -4/Hub_04(d) | Zion Fire squad teleported in 20558 | -4/Hub_04(d) | Retrieved Zion intel report: Main Access 20587 | -4/Hub_04(d) | Network Hub disabled 20629 | -4/Hub_04(d) | High security lockdown engaged 20675 | -4/Hub_04(d) | Network Hub disabled 20683 | -4/Hub_04(d) | Destroyed 10 combat bots 20688 | -4/Hub_04(d) | Spotted Lightning 20688 | -4/Hub_04(d) | Spotted Lightning 20691 | -4/Hub_04(d) | Spotted Lightning 20697 | -4/Hub_04(d) | Destroyed Lightning 20700 | -4/Hub_04(d) | Destroyed Lightning 20710 | -4/Hub_04(d) | Allies destroyed Lightning 20717 | -4/Hub_04(d) | Reached level 30 20738 | -4/Hub_04(d) | Lost 3 allies 20810 | -4/Hub_04(d) | Destroyed 31 combat bots 20968 | -4/Hub_04(d) | Entered Research 20968 | -3/Research | Accompanied by 1 ally 20969 | -3/Research | Core integrity fell below 50% 21081 | -3/Research | Retrieved Zion intel report: Branch Access 21081 | -3/Research | Identified exit to Armory 21081 | -3/Research | Identified exit to Testing 21195 | -3/Research | Fabricated Energy Deflector? 21202 | -3/Research | Zion Heavy squad teleported in 21218 | -3/Research | First assault squad dispatched 21234 | -3/Research | Destroyed 8 combat bots 21241 | -3/Research | Entered Armory 21241 | -3/Armory | Accompanied by 2 allies 21250 | -3/Armory | Zion Light squad teleported in 21267 | -3/Armory | Allied Derelicts emerged from ambush trap array 21275 | -3/Armory | Reached level 31 21321 | -3/Armory | Destroyed 9 combat bots 21330 | -3/Armory | Retrieved Zion intel report: Prototype Stockpiles 21331 | -3/Armory | Retrieved Zion intel report: Trap Installations 21369 | -3/Armory | Discovered new exit (range 10) 21400 | -3/Armory | High security lockdown imminent 21432 | -3/Armory | Retrieved Zion intel report: Prototype Schematics 21433 | -3/Armory | Zion Hover Resupply teleported in 21437 | -3/Armory | Destroyed 15 combat bots 21480 | -3/Armory | High security lockdown engaged 21514 | -3/Armory | Energy Cycler disabled 21531 | -3/Armory | Discovered new exit (range 16) 21550 | -3/Armory | Destroyed 19 combat bots 21578 | -3/Armory | Discovered new exit (range 4) 21581 | -3/Armory | Identified exit to Lab 21610 | -3/Armory | Spotted Investigator 21613 | -3/Armory | Destroyed Investigator 21663 | -3/Armory | Entered Lab 21663 | -3/Lab | Discovered new exit (range 9) 21665 | -3/Lab | Destroyed 11 combat bots 21668 | -3/Lab | Identified exit to Research 21670 | -3/Lab | Unable to decrypt terminal 21672 | -3/Lab | Entered Research 21674 | -2/Research | Reached level 32 21722 | -2/Research | Retrieved Zion intel report: Branch Access 21722 | -2/Research | Identified exit to Quarantine 21752 | -2/Research | Entered Quarantine 21754 | -2/Quarantine | Spotted Alpha 7 21768 | -2/Quarantine | Retrieved Zion intel report: Unaware Analyses 21789 | -2/Quarantine | Retrieved Zion intel report: Depthwide Sectors/-2 21798 | -2/Quarantine | Found Alien Artifact 21819 | -2/Quarantine | Retrieved Zion intel report: Depthwide Sectors/-1 21826 | -2/Quarantine | Retrieved Zion intel report: Unaware Analyses 21866 | -2/Quarantine | Upgraded with Propulsion slot (x1) 21893 | -2/Quarantine | Retrieved Zion intel report: Emergency Access 21898 | -2/Quarantine | Found Alien Artifact 21898 | -2/Quarantine | Identified Core Reset Matrix 21898 | -2/Quarantine | Identified Subatomic Replicator 21898 | -2/Quarantine | Reached level 33 21898 | -2/Quarantine | Used Core Reset Matrix 21902 | -2/Quarantine | Detected hypermatrix surge 21902 | -2/Quarantine | Sensed 11 artifacts in vicinity 21917 | -2/Quarantine | Cryocooling Duct disabled 21922 | -2/Quarantine | Retrieved Zion intel report: Guard Positions 21923 | -2/Quarantine | Retrieved Zion intel report: Component Stockpiles 21924 | -2/Quarantine | Retrieved Zion intel report: Prototype Schematics 21932 | -2/Quarantine | Ambient heat levels rising (+20) 21932 | -2/Quarantine | Non-combat units ordered to evacuate 21964 | -2/Quarantine | Spotted Fortress 21977 | -2/Quarantine | Discovered new exit (range 6) 21977 | -2/Quarantine | Discovered new exit (range 7) 21983 | -2/Quarantine | Entered Section 7 21984 | -2/Section 7 | Detected hypermatrix surge 21984 | -2/Section 7 | Sensed 18 artifacts in vicinity 22000 | -2/Section 7 | Retrieved Zion intel report: Active Garrisons 22021 | -2/Section 7 | Retrieved Zion intel report: Emergency Access 22033 | -2/Section 7 | Retrieved Zion intel report: Prototype Stockpiles 22035 | -2/Section 7 | Retrieved Zion intel report: Unaware Analyses 22047 | -2/Section 7 | Retrieved Zion intel report: Prototype Schematics 22058 | -2/Section 7 | Retrieved Zion intel report: Branch Access 22073 | -2/Section 7 | Retrieved Zion intel report: Unaware Analyses 22076 | -2/Section 7 | Found Spacefold Activator 22100 | -2/Section 7 | Retrieved Zion intel report: Guard Positions 22188 | -2/Section 7 | Spotted Alpha 7 22190 | -2/Section 7 | Retrieved Zion intel report: Unaware Analyses 22192 | -2/Section 7 | Retrieved Zion intel report: Component Schematics 22238 | -2/Section 7 | Retrieved Zion intel report: Active Terminals 22254 | -2/Section 7 | Discovered new exit (range 3) 22254 | -2/Section 7 | Identified exit to Access 22255 | -2/Section 7 | Entered Access 22257 | -1/Access | Reached level 34 22301 | -1/Access | Found Exp. Core Analyzer 22303 | -1/Access | Found Exp. Core Analyzer 22364 | -1/Access | Core integrity fell below 50% 22408 | -1/Access | Zion Demo squad teleported in 22412 | -1/Access | Energy Cycler disabled 22458 | -1/Access | Reached level 35 22458 | -1/Access | High security lockdown imminent 22531 | -1/Access | Emitted hypermatrix ping 22536 | -1/Access | Assembled emerged from beneath the floor 22538 | -1/Access | High security lockdown engaged 22560 | -1/Access | Destroyed 19 combat bots 22567 | -1/Access | Assembled emerged from beneath the floor 22588 | -1/Access | Spotted B-99 Colossus 22599 | -1/Access | Reached level 36 22631 | -1/Access | Garrison activated, responded to threat 22660 | -1/Access | Assembled emerged from beneath the floor 22661 | -1/Access | Spotted B-99 Colossus 22662 | -1/Access | Destroyed 19 combat bots 22667 | -1/Access | Lost 14 allies 22688 | -1/Access | Destroyed B-99 Colossus 22695 | -1/Access | Destroyed Striker 22695 | -1/Access | Destroyed Striker 22707 | -1/Access | Destroyed Executioner 22726 | -1/Access | Lost 7 allies 22731 | -1/Access | Destroyed 10 combat bots 22736 | -1/Access | Assembled emerged from beneath the floor 22792 | -1/Access | Assembled emerged from beneath the floor 22818 | -1/Access | Discovered new exit (range 6) 22818 | -1/Access | Identified exit to Surface 22918 | -1/Access | Reached level 37 22945 | -1/Access | Destroyed Striker 22948 | -1/Access | Destroyed Striker 22957 | -1/Access | Destroyed Executioner 22971 | -1/Access | Lost 14 allies 23011 | -1/Access | Destroyed 19 combat bots 23156 | -1/Access | Assembled emerged from beneath the floor 23191 | -1/Access | Assembled emerged from beneath the floor 23212 | -1/Access | Upgraded with Weapon slot (x1) 23213 | -1/Access | Used Subatomic Replicator to replicate Hyp. Alpha Cannon 23238 | -1/Access | Assembled emerged from beneath the floor 23269 | -1/Access | Spotted B-99 Colossus 23273 | -1/Access | Allies destroyed B-99 Colossus 23319 | -1/Access | Assembled emerged from beneath the floor 23328 | -1/Access | Sterilization system engaged 23351 | -1/Access | Spotted Striker 23353 | -1/Access | Destroyed Striker 23355 | -1/Access | Destroyed Striker 23368 | -1/Access | Destroyed Striker 23372 | -1/Access | Destroyed Striker 23375 | -1/Access | Spotted Executioner 23378 | -1/Access | Destroyed Executioner 23387 | -1/Access | Destroyed Executioner 23407 | -1/Access | Destroyed Executioner 23418 | -1/Access | Spotted Striker 23421 | -1/Access | Destroyed Striker 23423 | -1/Access | Reached level 38 23446 | -1/Access | Destroyed Executioner 23446 | -1/Access | Destroyed Striker 23465 | -1/Access | Destroyed Executioner 23471 | -1/Access | Lost 15 allies 23494 | -1/Access | Destroyed 41 combat bots 23540 | -1/Access | Destroyed 10 combat bots 23551 | -1/Access | Destroyed B-99 Colossus 23561 | -1/Access | Discovered new exit (range 4) 23562 | -1/Access | Identified exit to Command 23595 | -1/Access | Entered Command 23595 | -1/Command | Accompanied by 8 allies 23621 | -1/Command | Retrieved Zion intel report: Active Terminals 23639 | -1/Command | Phase Generator disabled 23644 | -1/Command | High security lockdown imminent 23653 | -1/Command | Retrieved Zion intel report: Emergency Access 23666 | -1/Command | Retrieved Zion intel report: Guard Positions 23683 | -1/Command | Retrieved Zion intel report: Trap Installations 23724 | -1/Command | High security lockdown engaged 23729 | -1/Command | Destroyed 17 combat bots 23760 | -1/Command | Destroyed Executioner 23762 | -1/Command | Destroyed Striker 23764 | -1/Command | Spotted Striker 23765 | -1/Command | Destroyed Striker 23767 | -1/Command | Destroyed Executioner 23828 | -1/Command | Lost 4 allies 23850 | -1/Command | Reached level 39 23868 | -1/Command | Destroyed Executioner 23879 | -1/Command | Destroyed Investigator 23881 | -1/Command | Spotted Striker 23884 | -1/Command | Destroyed Striker 23886 | -1/Command | Destroyed Striker 23890 | -1/Command | Destroyed Executioner 23900 | -1/Command | Destroyed Executioner 23930 | -1/Command | Destroyed 94 combat bots 24010 | -1/Command | Spotted Striker 24011 | -1/Command | Destroyed Striker 24046 | -1/Command | Emitted hypermatrix ping 24051 | -1/Command | Assembled emerged from beneath the floor 24069 | -1/Command | Destroyed 72 combat bots 24112 | -1/Command | Destroyed 17 combat bots 24121 | -1/Command | Lost 3 allies 24180 | -1/Command | Lost 4 allies 24183 | -1/Command | Destroyed 36 combat bots 24257 | -1/Command | Destroyed Striker 24262 | -1/Command | Spotted Executioner 24262 | -1/Command | Destroyed Executioner 24264 | -1/Command | Destroyed Executioner 24269 | -1/Command | Destroyed Executioner 24299 | -1/Command | Destroyed Executioner 24301 | -1/Command | Destroyed Striker 24301 | -1/Command | Destroyed Executioner 24304 | -1/Command | Destroyed Striker 24334 | -1/Command | Destroyed Executioner 24344 | -1/Command | Spotted Striker 24345 | -1/Command | Destroyed Striker 24353 | -1/Command | Destroyed Alpha 7 24355 | -1/Command | Destroyed Executioner 24357 | -1/Command | Destroyed Executioner 24361 | -1/Command | Spotted B-99 Colossus 24368 | -1/Command | Destroyed B-99 Colossus 24374 | -1/Command | Assembled emerged from beneath the floor 24381 | -1/Command | Destroyed Striker 24384 | -1/Command | Spotted Alpha 7 24386 | -1/Command | Destroyed Alpha 7 24387 | -1/Command | Spotted Executioner 24389 | -1/Command | Destroyed Executioner 24391 | -1/Command | Destroyed Executioner 24412 | -1/Command | Destroyed 52 combat bots 24414 | -1/Command | Destroyed B-99 Colossus 24424 | -1/Command | Assembled emerged from beneath the floor 24462 | -1/Command | Destroyed Investigator 24462 | -1/Command | Destroyed Executioner 24467 | -1/Command | Destroyed Striker 24469 | -1/Command | Destroyed Striker 24469 | -1/Command | Spotted Striker 24470 | -1/Command | Spotted Striker 24472 | -1/Command | Destroyed Striker 24472 | -1/Command | Destroyed Striker 24474 | -1/Command | Destroyed Executioner 24476 | -1/Command | Spotted Striker 24476 | -1/Command | Destroyed Striker 24476 | -1/Command | Destroyed Executioner 24489 | -1/Command | Destroyed Striker 24489 | -1/Command | Destroyed Striker 24514 | -1/Command | Lost 9 allies 24527 | -1/Command | Destroyed 30 combat bots 24598 | -1/Command | Reached level 40 24619 | -1/Command | Destroyed 47 combat bots 24739 | -1/Command | Destroyed 103 combat bots 24805 | -1/Command | Destroyed 27 combat bots 24839 | -1/Command | Spotted Combat Programmer 24839 | -1/Command | Destroyed Combat Programmer 24841 | -1/Command | Destroyed Combat Programmer 24874 | -1/Command | Spotted M Guard 24915 | -1/Command | Destroyed M Guard 24930 | -1/Command | Spotted M Guard 24950 | -1/Command | Destroyed M Guard 24950 | -1/Command | All MAIN.C guards destroyed 25001 | -1/Command | 0b10 Conduit disabled 25020 | -1/Command | Destroyed MAIN.C Shell 25023 | -1/Command | MAIN.C activated Command garrisons 25056 | -1/Command | Destroyed MAIN.C 25060 | -1/Command | Discovered exit to Surface (range 59) 25060 | -1/Command | Discovered exit to Surface (range 75) 25060 | -1/Command | Extracted map data and part IDs from MAIN.C's data core 25773 | -1/Command | Found Exp. Force Field 25774 | -1/Command | Found Exp. Weapon Cycler 25787 | -1/Command | Found Zero-point Reactor 25789 | -1/Command | Upgraded with Utility slot (x1) 25789 | -1/Command | Found Exp. Armor Integrity Analyzer 25791 | -1/Command | Found Exp. System Purifier 25907 | -1/Command | Assembled emerged from beneath the floor 26137 | -1/Command | Found Cld. Nova Cannon 26177 | -1/Command | Found Spectral Analyzer 27003 | *** | Heading to fleet! Last Messages --------------- 26836_ Particle Stream penetrates Wall. 26836_ Particle Stream penetrates Earth. 26842_ Particle Stream penetrates Wall. 26842_ Particle Stream penetrates Earth. 26844_ Particle Stream penetrates Wall. 26844_ Particle Stream penetrates Earth. 26846_ Particle Stream penetrates Wall. 26846_ Particle Stream penetrates Earth. 26867_ Particle Stream penetrates Wall. 26870_ Particle Stream penetrates Earth. 26921_ Upgraded: Sight Range (+4) 26927_ Particle Stream penetrates Wall. 26939_ Particle Stream penetrates Earth. 26943_ Particle Stream penetrates Wall. 26955_ Particle Stream penetrates Earth. 26977_ Acquired 20 matter. 26981_ Particle Stream penetrates Wall. 26984_ Particle Stream penetrates Reinforced Barrier. 26986_ Particle Stream penetrates Wall. Map ----- +----------------------------------------------------+ | ###############+################ #????????????? | | # + #??????????????# #????????????? | | # ## # #??????????????# #????????????? | | # ## ]*/ # #??????????????# #????????????? | | # ## ]* # #????########### #????????????? | | + + */ # #????# # #????????????? | | # ########"#+### ##???# # #????????????? | | # %%% "##??#]]] # #????????????? | | + ==* #??#]] # #????????????? | | # ^ #??#]] # #????????????? | | ######+#### ###??# # #????????????? | | ## ## ###### # #????????????? | | ## ##^^ + # #????????????? | | ## ## ######+###"##### #????????????? | | ## *[ ## # + #????????????? | | ##= = ## # " #????????????? | | + = ##^=! " " [ #??########### | | #" ## =! + ""= = #??#?????????? | | ##"+######## =! # " #= #??#?######### | | *%= #?????# # " " ####?#""""""" | | [= #?????# " # " " ##?#"" | | #?????# "#####""##" # #?#""""" | | #?????# "#??# # ##" #?##?#"""""""" | | #######+#### ##?######## = ##?#?# " | | ## # ### #a #?# =% #?#?#" """" | | ## # ##"##a@a#?# "= #?#?#"" "" | | ## ## ] " aa #?# # %! #?#?# " " | | ## ## ; a #?# # #?#?# " | | ## ## """" ;#;#########?# # ! #?#?# " | | ## / """ # ##???#######+## "#?#?#"""" | | ## ### """ "#?????# #%% ###?#"" | | ## ### % """ #?###### # "##?# | | ## ##"#/####""#### # "" " "##?# | | %%% [* # """" " "#### [ | | = [ *[ !%= " =+ """" ! =% *%% | | #####"/#/##""#####" % %= "" "[ ==[ | | # ##" ""] " % [ ! =% | | # ### ## # ##### =" " | | # #?# ##% # #?#?# " "" | | # #?# ########### #?#?# """ | | # #?# #?????????# #?#?######### | | # #?# ###???????# #?#?????????? | | # #?# ## #??????# #?########### | | " #?# #?# ####### #???????????? | | " #?# #??# # #???????????? | | """"################ #####" #???????????? | | ##" "### #???????????? | | ###+"""" #################"+## #???????????? | | "" ##= ## # #???????????? | | #" "" ##// # #???????????? | +----------------------------------------------------+ Best States ------------- Heat Dissipation 188 Energy Generation 95 Energy Capacity 700 Matter Stores 300 Matter Capacity 300 Sight Range 28 Robot Scan Range 40 Terrain Scan Density 10 Jamming Range 16 Cloak Strength 4 Corruption Block 20 Armor Coverage 225 Resistance: KI 30 Resistance: TH 30 Resistance: EM 75 Weapon Cycling 30 Phase Shifting 20 Evasion (%) 77 Targeting Accuracy 5 Core Analysis 12 Armor Integrity Analysis 50 Energy Filtering 75 Particle Charging 62 Force Boost 30 Offensive Hacking 26 Item Schematics ----------------- Electron Diverter | -2/Quarantine | Z-intel Hellfire Missile Launcher | -2/Quarantine | Z-intel Hds. Centrium Leg | -2/Quarantine | Z-intel Exp. Matter Compressor | -2/Quarantine | Z-intel Exp. Reaction Control System | -2/Quarantine | Z-intel Hvy. Hardcell Cannon | -2/Quarantine | Z-intel Diametric Drive | -2/Quarantine | Z-intel Exp. Focal Shield | -2/Quarantine | Z-intel Adv. EM Shield | -2/Section 7 | Z-intel Imp. Matter Neutralizer | -2/Section 7 | Z-intel Exp. Thermal Shield | -2/Section 7 | Z-intel Shock Maul | -2/Section 7 | Z-intel Neutron Missile Launcher | -2/Section 7 | Z-intel Exp. Power Amplifier | -2/Section 7 | Z-intel Cld. Q-thruster | -2/Section 7 | Z-intel Imp. Energy Well | -2/Section 7 | Z-intel Exp. Core Analyzer | -2/Section 7 | Z-intel Prc. Energy Filter | -2/Section 7 | Z-intel Lgt. Particle Reactor | -2/Section 7 | Z-intel Imp. Arc Projector | -2/Section 7 | Z-intel Hardlight Generator | -2/Section 7 | Z-intel Adv. Recalibrator | -2/Section 7 | Z-intel Lrn. Sensor Array | -2/Section 7 | Z-intel Remote Force Field | -2/Section 7 | Z-intel Imp. Melee Analysis Suite | -2/Section 7 | Z-intel Med. Reflective Plating | -2/Section 7 | Z-intel Imp. Utility Shielding | -2/Section 7 | Z-intel Imp. VSS Leg | -2/Section 7 | Z-intel Imp. Thunder Leg | -2/Section 7 | Z-intel Matter Neutralizer | -2/Section 7 | Z-intel Prc. Phase Gun | -2/Section 7 | Archive Centrium Greatsword | -2/Section 7 | Archive Cld. Impulse Thruster | -2/Section 7 | Archive Exp. Optical Array | -2/Section 7 | Archive Robot Schematics ------------------ R-10 Processor | -2/Section 7 | Archive Fabricated ------------ Quantum Capacitor | x2 | -6/Factory Tactical Coordination Suite | x1 | -6/Factory Hyp. Alpha Cannon | x1 | -5/Factory Prc. Energy Filter | x1 | -5/Factory Prc. Energy Filter | x1 | -5/Factory Hyp. Alpha Cannon | x1 | -4/Factory Energy Deflector | x1 | -3/Research Repaired ---------- Nothing Studied --------- None Alien Tech Used ----------------- Core Reset Matrix Subatomic Replicator Spacefold Activator Achievements -------------- None Challenges ------------ None RPGLIKE | -11 -10 -10 -10 -8 -6 -6 -6 -6 -5 -5 -5 -5 -5 -5 -5 -4 -4 -4 -4 -4 -4 -4 -4 -3 -3 -3 -2 -2 -2 -1 -1 --------- Run | Yrd Mat Min Sub Rec Fac Low Low Zio Pro Fac Was Fac Upp Upp War Pro Fac Was Fac Ext Cet Arc Hub Res Arm Lab Res Qua Sec Acc Com Levels Raised 39 | . 1 1 1 2 8 1 1 1 2 2 . 2 1 . 1 . 2 . 1 1 . . 1 . 1 . 1 1 . 5 2 XP Earned 62122 | 3000 2375 1700 1500 2975 12151 1550 1200 754 3955 2849 109 2975 464 368 1452 1066 1559 32 1892 1280 108 114 1356 894 1339 352 685 985 778 7171 3134 XP Spent 60850 | . 650 1050 500 5600 11125 4460 . 2900 1300 3260 1750 3310 1300 . 1725 . 2800 . 500 . . . 3850 . . . . 2000 750 6920 5100 Upgrades 105 | . 3 2 1 10 23 5 . 1 1 3 5 5 2 . 2 . 3 . 1 . . . 2 . . . . 1 1 29 5 Power Slot 1 | . . . . . . . . . . . . . . . . . 1 . . . . . . . . . . . . . . Propulsion Slot 6 | . . . . 3 . . . . . . . . . . 1 . 1 . . . . . . . . . . 1 . . . Utility Slot 11 | . 1 1 . 2 3 1 . 1 . 1 . . . . . . . . . . . . . . . . . . . . 1 Weapon Slot 2 | . . . . . . . . . . . . . . . . . . . 1 . . . . . . . . . . 1 . Core Integrity 28 | . . . . . . . . . . 2 . . . . . . . . . . . . . . . . . . . 26 . Heat Dissipation 22 | . 1 . . 4 5 3 . . . . 5 4 . . . . . . . . . . . . . . . . . . . Energy Generation 8 | . . . . 1 2 1 . . 1 . . 1 . . . . . . . . . . 2 . . . . . . . . Mass Support 2 | . 1 . . . . . . . . . . . . . . . 1 . . . . . . . . . . . . . . Inventory Capacity 3 | . . 1 1 . . . . . . . . . . . . . . . . . . . . . . . . . 1 . . Sight Range 4 | . . . . . . . . . . . . . . . . . . . . . . . . . . . . . . . 4 Sensor Range 12 | . . . . . 11 . . . . . . . . . 1 . . . . . . . . . . . . . . . . Ranged Accuracy 6 | . . . . . 2 . . . . . . . 2 . . . . . . . . . . . . . . . . 2 . Protomatter Created 28615 | . 18 112 165 98 617 230 130 . 428 165 486 626 429 217 1424 302 408 81 2098 1559 56 70 1843 180 1210 . . 48 355 3697 11563 Integrity Restored 16136 | . 36 366 405 294 1062 189 56 . 134 176 757 495 183 . 155 53 214 10 1529 140 . . 916 588 741 . . 144 460 2487 4546 Core 12918 | . 36 366 405 294 753 152 49 . 85 139 519 404 146 . 110 42 169 . 1133 111 . . 735 588 530 . . 144 314 1984 3710 Parts 3218 | . . . . . 309 37 7 . 49 37 238 91 37 . 45 11 45 10 396 29 . . 181 . 211 . . . 146 503 836 Protomatter Decayed 15107 | . 6 . 46 . 225 166 67 . 257 103 . 805 374 217 660 274 241 . 1364 541 56 57 1534 153 805 . . . 133 2347 4676 Game ------ Seed MatterLightningScanner Manual? 0 Play Time 07:17:09 Cumulative 239.2 hours Start 2026.08.26 @ 23:22:32 End 2026.08.27 @ 15:56:11 Sessions 3 Manual Loads 0 Difficulty Rogue Special Mode Winter2019/RPGLIKE Game No. 151 Rogue 151 Adventurer 0 Explorer 0 Win Type 2 Total 6 Types 2/0/2/1/0/0/0/1/0/0 Lore% 59 Gallery% 74 Achievement% 58 Wizard Run 0 Options --------- Layout 2 ASCII 0 Keyboard 0 Movement Mouse Keybinds 0 Fullscreen 1 Font 32/SmallcapsGlow Map View 50x44 Zoom Use 0% Tactical HUD 1 Map Filters NONE Filters NONE Steam 1 RUN: 7f2cc457-d604-4089-8536-df1eb0c3eab4